Cogmind - Beta 11.1 @@@ ROGUE MODE // 2022.06.11 @ 03:04:40 Player: Savant Result: Establishing 0b11! Performance ------------- Evolutions (9) 4500 Regions Visited (35) 7000 Robots Destroyed (310) 1550 Value Destroyed (13659) 13659 Prototype IDs (284) 5680 Alien Tech Used (10) 2000 Bonus (29164) 29164 TOTAL SCORE: 63553 Bonus ------- High Alert Combat Kills 888 Follower Combat Kills 2983 Network Hubs Disabled 200 Met Data Miner 300 Met Imprinter 300 Met Zhirov 300 Built Enhanced Grunts 300 A7 Reached Mainframe 300 Destroyed MAIN.C Guards 500 Met MAIN.C 5000 Hacked MAIN.C 300 Destroyed MAIN.C Shell 5000 Destroyed MAIN.C 10000 Win 3000 Friendly Fire -207 Cogmind --------- Core Integrity 795/1600 Matter 300/300 Energy 1193/1200 System Corruption 0% Temperature Cool (14) Movement Hovering (136) Ox1 Location 0b11 Command Parts ------- > --- POWER (2) -------- Vortex Chain Reactor > --- PROPULSION (7) --- Combat Linear Gravjet Combat Linear Gravjet Combat Linear Gravjet Combat Linear Gravjet Combat Linear Gravjet Combat Linear Gravjet Combat Linear Gravjet > --- UTILITY (12) ----- Experimental Power Amplifier High-capacity Storage Unit Spectral Analyzer Experimental Melee Analysis Suite Advanced Target Analyzer Femtoactuators Experimental Actuator Array Centrium Medium Armor Plating Focal Shield AEGIS Remote Shield Experimental Hacking Suite Experimental System Purifier > --- WEAPON (4) ------- Nanosword Nanosword Sigix Broadsword > --- INVENTORY (20) --- Vortex Chain Reactor Cooled Antigrav System 2N-1CE's Frost Array Experimental Energy Well (600) Experimental Matter Compressor (500) Experimental Targeting Computer Advanced Particle Accelerator Centrium Medium Armor Plating Beam Splitter Experimental EM Disruption Field System Purifier High-powered Transdimensional Reconstructor Core Regenerator Integrity Redistributor Integrity Redistributor Enhanced Nova Cannon Sigix Shearcannon Hellfire Missile Launcher Peak State ------------ > --- POWER ------------ Quantum Reactor Light Quantum Reactor > --- PROPULSION ------- Combat Linear Gravjet Combat Linear Gravjet Combat Linear Gravjet Combat Linear Gravjet Combat Linear Gravjet Combat Linear Gravjet Combat Linear Gravjet > --- UTILITY ---------- High-capacity Storage Unit Spectral Analyzer Experimental Melee Analysis Suite Experimental Melee Analysis Suite Femtoactuators Experimental Actuator Array Advanced Reaction Control System Centrium Medium Armor Plating Experimental EM Disruption Field Advanced Hacking Suite Experimental Hacking Suite Experimental Hacking Suite > --- WEAPON ----------- Sigix Shearcannon Sigix Broadsword > --- INVENTORY -------- Micro Antimatter Reactor Quantum Reactor Experimental Power Amplifier 2N-1CE's Frost Array Advanced Energy Well Light Regenerative Plating Beam Splitter System Purifier High-powered Transdimensional Reconstructor Core Regenerator Integrity Redistributor Integrity Redistributor Integrity Redistributor Integrity Redistributor Subatomic Replicator Advanced Remote Datajack Nanosword [Rating: 248] Favorites ----------- Power Micro Fission Core Engine Makeshift Power Source Power Core Micro Fission Core Reactor Light Quantum Reactor Propulsion Combat Linear Gravjet Treads Light Treads Wheel Wheel Hover Unit Combat Linear Gravjet Flight Unit Field Propulsion Array Utility Advanced Hacking Suite Device Long-range Sensor Array Storage Medium Storage Unit Processor Advanced Signal Interpreter Hackware Advanced Hacking Suite Protection Light Regenerative Plating Artifact Phase Redirector Weapon Nanosword Energy Gun EM Pulse Gun Energy Cannon Cooled Plasma Cannon Ballistic Gun Light Assault Rifle Launcher Grenade Launcher Special Weapon Advanced Remote Datajack Impact Weapon Shock Maul Slashing Weapon Nanosword Piercing Weapon Plasma Lance Special Melee Weapon Dirty Datajack Build | -11 -10 -10 -10 -9 -8 -8 -7 -7 -7 -7 -6 -6 -6 -6 -6 -5 -5 -5 -5 -5 -4 -4 -4 -4 -4 -4 -4 -4 -3 -3 -2 -2 -2 -1 -1 ------- Run | Scr Mat Min Exi Min Mat Sto Fac Low Low Zio Pro Fac Low Low Dat Pro Fac Upp Upp Zhi Pro Fac Was Fac Ext Cet Arc Hub Res Tes Res Qua Sec Acc Com Slots Evolved 18 | . . . . . 4 . 2 . . . . 2 . . . . 2 . . . . 2 . . . . . . 2 . 2 . . 2 . Power 1 | . . . . . . . . . . . . . . . . . . . . . . 1 . . . . . . . . . . . . . Propulsion 5 | . . . . . 2 . . . . . . . . . . . . . . . . . . . . . . . 2 . . . . 1 . Utility 10 | . . . . . 2 . 2 . . . . 2 . . . . 2 . . . . 1 . . . . . . . . 1 . . . . Weapon 2 | . . . . . . . . . . . . . . . . . . . . . . . . . . . . . . . 1 . . 1 . Parts Attached 571 | 6 9 12 3 1 38 39 13 6 3 . 1 16 3 4 2 2 29 3 2 10 6 16 3 20 11 8 2 4 28 37 51 55 52 18 58 Power 45 | 1 . . . . 1 2 . 1 1 . . . . . . . 1 . . 2 . . . 2 1 2 . 1 2 1 7 8 4 3 5 Engine 5 | 1 . . . . 1 1 . . 1 . . . . . . . . . . . . . . . . 1 . . . . . . . . . Core 9 | . . . . . . 1 . 1 . . . . . . . . 1 . . 1 . . . 2 1 1 . . 1 . . . . . . Reactor 31 | . . . . . . . . . . . . . . . . . . . . 1 . . . . . . . 1 1 1 7 8 4 3 5 Propulsion 66 | 2 1 2 . . 9 13 . . . . . 2 . . . . 6 . . 3 . . 1 . . . . . 4 6 4 2 . 4 7 Treads 9 | 1 . . . . 5 3 . . . . . . . . . . . . . . . . . . . . . . . . . . . . . Leg . | . . . . . . . . . . . . . . . . . . . . . . . . . . . . . . . . . . . . Wheel 11 | 1 1 2 . . 4 3 . . . . . . . . . . . . . . . . . . . . . . . . . . . . . Hover 22 | . . . . . . . . . . . . . . . . . . . . . . . . . . . . . . 6 4 2 . 3 7 Flight 24 | . . . . . . 7 . . . . . 2 . . . . 6 . . 3 . . 1 . . . . . 4 . . . . 1 . Utility 289 | 1 4 4 . 1 7 10 9 3 1 . . 13 3 1 . . 15 2 . 5 . 14 . 13 6 3 2 3 8 19 31 36 36 10 29 Device 171 | . . 1 . 1 1 3 3 1 . . . 6 1 . . . 6 1 . 1 . 6 . 9 5 . 2 3 5 12 23 29 25 8 19 Storage 11 | 1 1 1 . . . 1 1 . 1 . . . . . . . . . . . . 1 . . . . . . 1 1 . . . . 2 Processor 14 | . . . . . 2 1 . . . . . 2 1 . . . . 1 . . . . . . 1 . . . 1 1 . 1 1 1 1 Hackware 23 | . . . . . . . 4 1 . . . 4 . . . . 5 . . . . 3 . 2 . 1 . . . 3 . . . . . Protection 69 | . 3 2 . . 4 5 1 1 . . . 1 1 1 . . 4 . . 4 . 4 . 2 . 2 . . 1 2 8 5 10 1 7 Artifact 1 | . . . . . . . . . . . . . . . . . . . . . . . . . . . . . . . . 1 . . . Weapon 171 | 2 4 6 3 . 21 14 4 2 1 . 1 1 . 3 2 2 7 1 2 . 6 2 2 5 4 3 . . 14 11 9 9 12 1 17 Energy Gun 16 | 2 2 1 1 . 5 5 . . . . . . . . . . . . . . . . . . . . . . . . . . . . . Energy Cannon 37 | . . . . . . . . . . . . . . . . 1 2 . 1 . 1 . 1 4 . 1 . . 5 5 2 3 6 . 5 Ballistic Gun 6 | . 1 3 1 . 1 . . . . . . . . . . . . . . . . . . . . . . . . . . . . . . Ballistic Cannon . | . . . . . . . . . . . . . . . . . . . . . . . . . . . . . . . . . . . . Launcher 18 | . 1 2 . . 2 2 . 1 . . . . . 1 . . 1 . . . 2 1 . . . . . . 1 . 2 1 . . 1 Special Weapon 1 | . . . . . . . . . . . . . . . . . . . . . . . . . . . . . . . . . . . 1 Impact Weapon 20 | . . . . . 10 5 1 . . . . . . 1 . . 1 . 1 . 1 . . . . . . . . . . . . . . Slashing Weapon 52 | . . . . . 3 2 2 . 1 . 1 1 . 1 1 1 1 . . . . . . 1 2 1 . . 8 6 . 3 6 1 10 Piercing Weapon 7 | . . . . . . . . . . . . . . . . . . . . . . . . . . . . . . . 5 2 . . . Special Melee Weapon 14 | . . . 1 . . . 1 1 . . . . . . 1 . 2 1 . . 2 1 1 . 2 1 . . . . . . . . . Unidentified Prototypes 16 | . . 1 . . 2 . . . . . . . . . . . . . . 5 . . . 1 . 1 . . . 1 . 1 2 . 2 Corrupted Parts 1 | . . . . 1 . . . . . . . . . . . . . . . . . . . . . . . . . . . . . . . System Corruption 6 | . . . . 6 . . . . . . . . . . . . . . . . . . . . . . . . . . . . . . . Parts Lost 36 | . 2 1 . . 3 6 . 1 . . . . . 2 . . 1 . . . . 2 . 4 . 1 . 1 . . 1 1 . . 10 Power 8 | . . . . . . 1 . 1 . . . . . . . . . . . . . . . 1 . 1 . 1 . . . . . . 3 Propulsion 9 | . . 1 . . 3 3 . . . . . . . 1 . . 1 . . . . . . . . . . . . . . . . . . Utility 16 | . 1 . . . . 1 . . . . . . . 1 . . . . . . . 2 . 3 . . . . . . 1 1 . . 6 Weapon 3 | . 1 . . . . 1 . . . . . . . . . . . . . . . . . . . . . . . . . . . . 1 Highest Loss Streak 7 | . 2 1 . . 1 5 . 1 . . . . . 2 . . 1 . . . . 2 . 2 . 1 . 1 . . 1 1 . . 7 To Critical Strikes . | . . . . . . . . . . . . . . . . . . . . . . . . . . . . . . . . . . . . Average Slot Usage (%) 92 | . 98 100 86 100 99 94 95 98 92 100 95 85 80 79 66 66 81 88 88 90 94 92 94 90 83 90 89 89 88 90 99 95 94 95 93 Engine 3 | . 14 14 14 14 9 7 . . . 7 7 6 6 6 6 6 2 . . . . 4 5 2 5 7 5 3 . . . . . . . Core 1 | . . . . . . . 7 6 6 . . . . . . . 2 5 5 5 5 5 5 4 2 . . . 3 2 . . . . . Reactor 2 | . . . . . . . . . . . . . . . . . . . . . . . . . . . . 2 4 6 7 8 7 8 7 Treads 2 | . 14 11 . . 17 14 . . . . . . . . . . . . . . . . . . . . . . . . . . . . . Wheel 3 | . 14 16 28 28 17 15 . . . . . . . . . . . . . . . . . . . . . . . . . . . . . Hover 6 | . . . . . . . . . . . . . . . . . . . . . . . . . . . . . . 12 26 26 26 27 27 Flight 9 | . . . . . . 3 30 30 30 30 30 19 13 12 6 6 11 11 11 14 17 15 15 15 15 15 15 15 18 7 . . . . . Device 6 | . . . . . 3 1 14 6 7 7 7 5 6 6 6 6 5 5 5 5 5 6 5 9 10 15 15 15 10 10 5 8 9 8 16 Storage 6 | . 14 14 14 14 9 9 7 7 7 7 7 6 6 6 6 6 5 5 5 5 5 5 5 5 5 5 5 5 4 4 4 4 4 4 4 Processor 6 | . . . . . 7 9 7 7 7 7 7 7 13 12 6 6 5 5 5 5 5 5 5 5 7 5 5 5 7 9 8 8 11 12 11 Hackware 18 | . . . . . . . 14 23 23 23 23 29 20 20 20 20 31 35 35 32 29 28 31 28 21 25 26 26 23 23 21 19 17 16 9 Protection 7 | . 13 14 14 14 16 16 . . . . . 2 6 6 6 6 4 5 5 6 11 9 10 7 7 5 5 5 4 3 11 10 6 7 4 Energy Gun 2 | . 27 9 . 14 4 1 . . . . . . . . . . . . . . . . . . . . . . . . . . . . . Impact Weapon 2 | . . . . . 10 14 5 . . . . . . . . . 4 5 5 5 5 5 5 2 . . . . . . . . . . . Slashing Weapon 4 | . . . . . 1 . 3 7 7 15 10 6 6 5 2 5 . . . . . . . 2 6 5 5 5 7 8 8 8 7 12 11 Special Melee Weapon 1 | . . . 11 . . . 1 5 . . . . . . 3 . 2 5 5 5 4 5 4 4 . 3 5 5 1 . . . . . . Naked Turns . | . . . . . . . . . . . . . . . . . . . . . . . . . . . . . . . . . . . . Heaviest Build 127 | 14 36 98 97 97 113 113 39 20 20 20 20 24 24 24 24 24 24 24 24 25 25 27 33 35 30 37 26 37 45 69 97 105 108 106 127 Greatest Support 119 | 16 16 20 20 20 36 29 29 20 20 20 20 30 30 30 15 15 30 30 30 30 27 27 27 30 27 27 27 27 48 96 102 102 102 119 119 Greatest Overweight (x) 7 | . 3 4 4 4 7 5 1 . . . . . . 1 1 1 1 . . . . . 1 1 1 1 . 1 1 . . 1 1 . 1 Average Overweight (x) . | . 1 3 4 4 4 2 . . . . . . . . 1 1 . . . . . . . . . . . . . . . . . . . Largest Inventory Capacity 25 | 8 15 25 25 25 25 25 15 10 10 10 10 10 10 10 10 10 10 10 10 10 10 10 10 10 10 10 10 10 15 20 20 20 20 20 20 Average Capacity 15 | 6 11 16 25 25 25 24 11 10 10 10 10 10 10 10 10 10 10 10 10 10 10 10 10 10 10 10 10 10 10 17 20 20 20 20 20 Most Carried 25 | 5 14 21 22 22 25 25 13 10 10 10 10 10 10 10 10 10 10 10 10 10 10 10 10 10 10 10 10 10 15 20 20 20 20 20 20 Average Carried 14 | 2 9 15 21 21 24 23 10 9 10 10 9 9 9 9 9 9 9 10 9 9 10 9 9 9 9 9 10 10 10 15 19 19 19 19 18 Final Capacity 25 | 8 15 25 25 25 25 15 10 10 10 10 10 10 10 10 10 10 10 10 10 10 10 10 10 10 10 10 10 10 15 20 20 20 20 20 20 Final Carried 25 | 5 14 21 21 22 25 14 10 10 10 10 10 10 10 10 10 10 10 10 10 10 10 10 10 10 10 10 10 10 15 20 20 20 20 19 20 Class Distribution -------------------- 21% | Wizard-Mutant 20% | Mutant 17% | Wizard-Sprinter 12% | Hacker-Sprinter 5% | Wizard-Gladiator 5% | Wizard-Scout 4% | Hacker-Mutant 4% | Hacker-Gladiator Dominant Class ---------------- Mutant | -10/Materials Mutant | -10/Mines Mutant | -10/Exiles Mutant | -9/Mines Mutant | -8/Materials Mutant | -8/Storage Hacker-Sprinter | -7/Factory Hacker-Sprinter | -7/Lower Caves Hacker-Sprinter | -7/Lower Caves Hacker-Sprinter | -7/Zion Hacker-Sprinter | -6/Proximity Caves Hacker-Sprinter | -6/Factory Hacker-Gladiator | -6/Lower Caves Hacker-Gladiator | -6/Lower Caves Hacker-Mutant | -6/Data Miner Hacker-Mutant | -5/Proximity Caves Wizard-Mutant | -5/Factory Wizard-Mutant | -5/Upper Caves Wizard-Mutant | -5/Upper Caves Wizard-Sprinter | -5/Zhirov Wizard-Sprinter | -4/Proximity Caves Wizard-Sprinter | -4/Factory Wizard-Sprinter | -4/Waste Wizard-Sprinter | -4/Factory Hacker-Scout | -4/Extension Wizard-Sprinter | -4/Cetus Wizard-Sprinter | -4/Archives Wizard-Sprinter | -4/Hub_04(d) Wizard-Sprinter | -3/Research Wizard-Mutant | -3/Testing Wizard-Mutant | -2/Research Wizard-Gladiator | -2/Quarantine Wizard-Scout | -2/Section 7 Wizard-Scout | -1/Access Machinist-Gladiator | -1/Command Resources | -11 -10 -10 -10 -9 -8 -8 -7 -7 -7 -7 -6 -6 -6 -6 -6 -5 -5 -5 -5 -5 -4 -4 -4 -4 -4 -4 -4 -4 -3 -3 -2 -2 -2 -1 -1 ----------- Run | Scr Mat Min Exi Min Mat Sto Fac Low Low Zio Pro Fac Low Low Dat Pro Fac Upp Upp Zhi Pro Fac Was Fac Ext Cet Arc Hub Res Tes Res Qua Sec Acc Com Matter Collected 7112 | 184 131 58 150 45 466 387 60 170 10 20 10 84 48 108 . . 403 36 15 . 175 233 50 199 125 85 20 40 266 400 600 604 658 130 1142 Remotely . | . . . . . . . . . . . . . . . . . . . . . . . . . . . . . . . . . . . . Salvage Created 14738 | . 405 51 . 17 1399 803 71 39 . . . 68 . 70 . . 683 . 20 . 137 468 33 637 828 . 79 . 741 702 1880 1350 1641 471 2145 Parts 668 | . 23 20 . 1 57 24 5 4 . . . 7 . 3 . . 21 . . . 8 14 2 23 41 . 4 . 34 40 104 68 74 27 64 Haulers Intercepted 16 | . . . . . 5 1 . . . . . . . . . . 3 . . . . 1 . . . . . . 4 1 1 . . . . Recyclers Shooed 1 | . . . . . . . . . . . . . . . . . . . . . . . . . . . . . 1 . . . . . . Parts Field Recycled . | . . . . . . . . . . . . . . . . . . . . . . . . . . . . . . . . . . . . Retrieved Matter . | . . . . . . . . . . . . . . . . . . . . . . . . . . . . . . . . . . . . Parts Self-Destructed 19 | . . . . . . . . 3 2 . . . . 5 . . . . 2 . 7 . . . . . . . . . . . . . . Prevented 10 | . . . . . . . . 3 . . . . 3 . . 1 . 1 2 . . . . . . . . . . . . . . . . Kills | -11 -10 -10 -10 -9 -8 -8 -7 -7 -7 -7 -6 -6 -6 -6 -6 -5 -5 -5 -5 -5 -4 -4 -4 -4 -4 -4 -4 -4 -3 -3 -2 -2 -2 -1 -1 ------- Run | Scr Mat Min Exi Min Mat Sto Fac Low Low Zio Pro Fac Low Low Dat Pro Fac Upp Upp Zhi Pro Fac Was Fac Ext Cet Arc Hub Res Tes Res Qua Sec Acc Com Combat Hostiles Destroyed 209 | . 10 9 . 1 28 16 1 3 . . . 1 . 3 . . 13 . . . 9 8 . 7 6 . . . 4 6 28 16 13 10 17 Melee 111 | . . . . . 12 2 . . . . . 1 . 1 . . 7 . . . . 3 . 3 6 . . . . 6 20 11 13 10 16 Guns 14 | . 9 1 . 1 2 1 . . . . . . . . . . . . . . . . . . . . . . . . . . . . . Cannons 1 | . . . . . . . . . . . . . . . . . . . . . . . . . . . . . . . . . . . 1 AOE 61 | . 1 8 . . 6 9 . 3 . . . . . 2 . . 4 . . . 9 2 . . . . . . 4 . 8 5 . . . Classes Destroyed 19 | . 2 2 . . 6 3 . . . . . 1 . . . . . . 1 . . 1 . . 1 . . . . . . . . 1 1 Worker 13 | . . . . . 2 . . . . . . . . . . . 1 . . . . . . 1 . . . . 1 1 3 . 1 1 2 Builder 14 | . . 1 . . 2 . . . . . . . . . . . . . . . . . . . 2 . . . 1 1 3 4 . . . Tunneler 2 | . . . . . 1 . . . . . . . . . . . . . . . . . . . . . . . 1 . . . . . . Hauler 16 | . . . . . 5 1 . . . . . . . . . . 3 . . . . 1 . . . . . . 4 1 1 . . . . Recycler 11 | . . . . . 2 . . . . . . . . . . . . . . . . . . . 2 . . . 1 . . 2 3 . 1 Minesweeper 1 | . . . . . . . . . . . . . . . . . . . 1 . . . . . . . . . . . . . . . . Operator 7 | . . 1 . . 1 2 1 . . . . . . . . . . . . . . . . . . . 2 . . . . . . . . Watcher 36 | . . . . . 2 2 . . . . . 1 . . . . 6 . . . . . . 3 2 . . . 4 3 5 2 5 . 1 Swarmer 74 | . 2 9 . . 7 1 . 3 . . . . . 2 . . 13 . . . 9 3 . . . . . . 4 . 12 5 . 4 . Cutter 3 | . . . . . . . . . . . . . . . . . . . . . . . . . . . . . . . . . . 3 . Grunt 50 | . 8 . . 1 14 10 . . . . . . . . . . . . . . . 1 . 4 3 . . . . 1 1 4 3 . . Brawler 2 | . . . . . . 1 . . . . . . . . . . . . . . . 1 . . . . . . . . . . . . . Duelist 4 | . . . . . . 2 . . . . . . . . . . . . . . . 1 . . . . . . . . . 1 . . . Protector 1 | . . . . . . 1 . . . . . . . . . . . . . . . . . . . . . . . . . . . . . Sentry 20 | . . . . . 7 1 1 . . . . . . . . . . . . . . . . . 1 . . . . . 2 3 4 . 1 Specialist 1 | . . . . . . . . . . . . . . . . . . . . . . . . . . . . . . . . . . . 1 Hunter 14 | . . . . . . . . . . . . . . . . . . . . . . 2 . 3 . . . . . 2 6 . . . 1 Programmer 32 | . . . . . . . . . . . . 1 . 1 . . . . . . . . . . 1 . . . . 3 7 3 5 3 8 Behemoth 1 | . . . . . . . . . . . . . . . . . . . . . . . . . 1 . . . . . . . . . . S7 Guard 1 | . . . . . . . . . . . . . . . . . . . . . . . . . . . . . . . . . 1 . . M Guard 2 | . . . . . . . . . . . . . . . . . . . . . . . . . . . . . . . . . . . 2 Combat Programmer 2 | . . . . . . . . . . . . . . . . . . . . . . . . . . . . . . . . . . . 2 Wasp 1 | . . . . . . . . . . . . . . . . . . . . . . . 1 . . . . . . . . . . . . Best Kill Streak 9 | . 2 6 . 1 7 7 1 3 . . . 1 . 2 . . 5 . 1 . 5 2 . 3 3 . 2 . 9 3 7 7 5 4 4 Combat Bots Only 7 | . 2 6 . 1 6 7 1 3 . . . 1 . 2 . . 5 . . . 5 2 . 2 2 . . . 4 3 7 5 2 4 2 Max Kills in Single Turn 6 | . 1 3 . 1 3 5 1 2 . . . 1 . 1 . . 2 . 1 . 4 1 1 1 1 . 1 . 6 1 4 4 1 2 1 Gunslinging . | . . . . . . . . . . . . . . . . . . . . . . . . . . . . . . . . . . . . Exploded 5 | . 1 2 . . 2 5 . 2 . . . . . 1 . . 1 . . . 4 1 . . . . . . 3 . 4 4 . . . Melee 2 | . . . . . 1 1 . . . . . 1 . 1 . . 1 . . . . 1 . 1 1 . . . . 1 1 1 1 2 1 Uniques/NPCs Destroyed 2 | . . . . . . . . . . . . . . . . . . . . . . . . . . . . . . . . . . . 2 MAIN.C Shell (-1/Command) MAIN.C (-1/Command) Combat | -11 -10 -10 -10 -9 -8 -8 -7 -7 -7 -7 -6 -6 -6 -6 -6 -5 -5 -5 -5 -5 -4 -4 -4 -4 -4 -4 -4 -4 -3 -3 -2 -2 -2 -1 -1 -------- Run | Scr Mat Min Exi Min Mat Sto Fac Low Low Zio Pro Fac Low Low Dat Pro Fac Upp Upp Zhi Pro Fac Was Fac Ext Cet Arc Hub Res Tes Res Qua Sec Acc Com Damage Taken 15754 | . 280 259 . 30 1221 1063 238 105 . . . 118 . 322 . . 765 . 21 . 239 449 . 919 717 78 . 375 214 392 1597 927 819 349 4257 Core 2379 | . 26 62 . . 137 202 39 24 . . . 15 . 7 . . 138 . . . 103 63 . 310 145 33 . 157 86 49 195 95 120 39 334 Absorbed by Shields 188 | . . . . . . . . . . . . . . . . . . . . . . . . . 169 19 . . . . . . . . . Redirected to Core 115 | . . . . . . . . . . . . . . . . . . . . . . . . . . . . . . . . . 115 . . Redirected to Shielding 608 | . . . . . 17 . . . . . . . . . . . 39 . . . 47 72 . . 130 . . . 19 . 161 66 57 . . Regen/Repaired (Parts) 7850 | . . . . . . . 97 . . . . . . . . . 442 . . . . 91 19 697 329 2 . . 388 163 847 728 457 119 3471 Core Remaining (%) 70 | 100 . . . 64 . 38 . . . . 91 . . . . 97 . . . . 75 . . . . . . 38 . 89 . . 66 . 49 Volleys Fired 176 | . 21 9 . 1 15 13 . 3 . . . . . 2 . 1 7 . 1 . 6 2 7 7 . 1 . . 27 11 6 5 11 . 20 Largest 2 | . 2 2 . 2 2 2 . 1 . . . . . 1 . 1 1 . 1 . 1 1 1 1 . 1 . . 1 1 1 1 1 . 1 Hottest 180 | . 90 40 . 65 100 110 . 30 . . . . . 30 . 35 35 . 35 . 35 30 35 35 . 88 . . 90 90 120 120 120 . 180 Shots Fired 215 | . 41 11 . 2 23 22 . 3 . . . . . 2 . 1 7 . 1 . 6 2 7 7 . 1 . . 27 11 5 5 11 . 20 Gun 84 | . 40 4 . 2 18 20 . . . . . . . . . . . . . . . . . . . . . . . . . . . . . Cannon 91 | . . . . . . . . . . . . . . . . 1 2 . 1 . 1 . 7 7 . 1 . . 25 11 2 3 11 . 19 Launcher 39 | . 1 7 . . 5 2 . 3 . . . . . 2 . . 5 . . . 5 2 . . . . . . 2 . 3 2 . . . Special 1 | . . . . . . . . . . . . . . . . . . . . . . . . . . . . . . . . . . . 1 Kinetic 10 | . . 4 . 1 5 . . . . . . . . . . . . . . . . . . . . . . . . . . . . . . Thermal 105 | . 20 . . . . . . . . . . . . . . 1 2 . 1 . 1 . 7 7 . . . . 25 11 2 3 11 . 14 Explosive 39 | . 1 7 . . 5 2 . 3 . . . . . 2 . . 5 . . . 5 2 . . . . . . 2 . 3 2 . . . Electromagnetic 55 | . 20 . . 1 13 20 . . . . . . . . . . . . . . . . . . . 1 . . . . . . . . . Slashing 5 | . . . . . . . . . . . . . . . . . . . . . . . . . . . . . . . . . . . 5 Robot Hit Streak 17 | . 7 1 . 1 6 17 . . . . . . . . . . . . . . . . 4 . . 2 . . 3 . 4 5 . . 9 Robot Miss Streak 7 | . 1 2 . 1 3 1 . 1 . . . . . . . . 3 . . . 6 . 7 . . . . . 2 . . . . . 2 Penetration Max . | . . . . . . . . . . . . . . . . . . . . . . . . . . . . . . . . . . . . Secondary Targets . | . . . . . . . . . . . . . . . . . . . . . . . . . . . . . . . . . . . . Shots Hit Robots 791 | . 30 1 4 1 89 44 11 . . . . 5 . 1 1 . 23 . 1 . . 13 5 23 42 4 2 1 20 31 90 50 66 29 204 Core Hits 328 | . 18 15 . 1 32 22 1 3 . . . 2 . 3 . . 14 . . . 11 6 1 7 13 1 . . 17 13 41 27 22 10 48 Critical Kills 7 | . . . . . 2 . . . . . . . . . . . 3 . . . . 1 . 1 . . . . . . . . . . . Critical Parts Destroyed 38 | . . . . . 16 3 2 . . . . . . . . . 7 . 1 . . 5 . 4 . . . . . . . . . . . Critical Strikes 83 | . . . . . 19 4 2 . . . . 1 . . . . 10 . 1 . . 6 . 6 4 . . 1 . 1 6 3 5 . 14 Corrupt 1 | . . . . . . 1 . . . . . . . . . . . . . . . . . . . . . . . . . . . . . Smash 46 | . . . . . 19 3 2 . . . . . . . . . 10 . 1 . . 6 . 5 . . . . . . . . . . . Sever 36 | . . . . . . . . . . . . 1 . . . . . . . . . . . 1 4 . . 1 . 1 6 3 5 . 14 Melee Attacks 1582 | . . . 4 . 102 39 37 24 9 1 13 46 8 29 1 6 58 13 11 . 9 62 . 91 56 4 2 8 70 69 223 105 127 75 280 Impact 345 | . . . . . 98 35 20 . . . . . . . . . 48 13 11 . 9 62 . 49 . . . . . . . . . . . Slashing 1197 | . . . . . 4 4 16 24 9 1 13 46 8 29 . 6 9 . . . . . . 42 53 4 2 8 70 69 193 105 127 75 280 Piercing 33 | . . . . . . . . . . . . . . . . . . . . . . . . . 3 . . . . . 30 . . . . Sneak Attacks 86 | . . . 4 . 11 4 2 . . . . 1 . . 1 . 4 . 1 . . 2 . 3 18 . 2 . 5 2 10 5 7 1 3 Combat Hostiles 14 | . . . . . . . . . . . . . . . . . . . . . . 1 . 1 12 . . . . . . . . . . Follow-up Attacks 168 | . . . . . 14 2 2 . . . . . . . . . . . . . . . . . 3 . . . 1 2 26 7 17 17 77 Damage Inflicted 57164 | . 483 540 . 15 4534 2350 440 206 . . . 335 . 127 . . 1854 . 156 . 577 1046 194 1461 3069 170 232 67 2304 1981 7158 4879 5806 2166 15014 Guns 1047 | . 380 22 . 15 264 366 . . . . . . . . . . . . . . . . . . . . . . . . . . . . . Cannons 557 | . . . . . . . . . . . . . . . . . . . . . . . 194 . . 30 . . 199 . . . . . 134 Explosions 6128 | . 103 518 . . 600 832 . 206 . . . . . 73 . . 362 . . . 577 198 . . . . . . 964 . 1084 611 . . . Melee 49432 | . . . . . 3670 1152 440 . . . . 335 . 54 . . 1492 . 156 . . 848 . 1461 3069 140 232 67 1141 1981 6074 4268 5806 2166 14880 Ramming . | . . . . . . . . . . . . . . . . . . . . . . . . . . . . . . . . . . . . Kinetic 82 | . . 22 . 15 45 . . . . . . . . . . . . . . . . . . . . . . . . . . . . . . Thermal 1011 | . 280 . . . 68 270 . . . . . . . . . . . . . . . . 194 . . . . . 199 . . . . . . Explosive 5687 | . . 518 . . 532 562 . 206 . . . . . 73 . . 362 . . . 577 198 . . . . . . 964 . 1084 611 . . . Electromagnetic 818 | . 203 . . . 219 366 . . . . . . . . . . . . . . . . . . . 30 . . . . . . . . . Impact 7657 | . . . . . 3552 950 256 . . . . . . . . . 1238 . 156 . . 848 . 657 . . . . . . . . . . . Slashing 41441 | . . . . . 118 202 184 . . . . 335 . 54 . . 254 . . . . . . 804 3063 140 232 67 1141 1981 5612 4268 5806 2166 15014 Piercing 468 | . . . . . . . . . . . . . . . . . . . . . . . . . 6 . . . . . 462 . . . . Highest Corruption 10 | . . 1 1 7 . . . . . . . 1 1 6 6 6 1 1 1 1 1 6 1 1 1 2 2 2 . . 10 9 1 2 2 Average Corruption 2 | . . 1 1 1 . . . . . . . 1 1 6 6 6 1 1 1 1 1 4 1 1 1 1 1 1 . . 7 3 1 1 1 Corruption Purged 27 | . . . . . . . . . . . . . 1 . . . . . . . . 6 . 1 . . 2 . . . 1 11 1 2 2 Corruption Blocked . | . . . . . . . . . . . . . . . . . . . . . . . . . . . . . . . . . . . . Effects 115 | . . . . 1 . . . . . . . . 1 . 4 8 5 6 5 . 2 5 . 4 10 2 1 1 . . 48 4 2 . 6 Message Errors 36 | . . . . . . . . . . . . . 1 . . 3 3 2 2 . 1 2 . 1 3 1 . 1 . . 12 . 2 . 2 Matter Fused 32 | . . . . 1 . . . . . . . . . . 2 2 . 3 1 . . 1 . . 3 . . . . . 18 . . . 1 Heat Flow Errors 18 | . . . . . . . . . . . . . . . 1 . 2 1 1 . 1 1 . . 1 1 . . . . 8 . . . 1 Energy Discharges 7 | . . . . . . . . . . . . . . . . 1 . . 1 . . . . 1 1 . 1 . . . 2 . . . . Parts Rejected 2 | . . . . . . . . . . . . . . . . . . . . . . . . 1 . . . . . . . . . . 1 Data Loss (minor) 14 | . . . . . . . . . . . . . . . 1 1 . . . . . . . . 1 . . . . . 7 3 . . 1 Data Loss (major) 4 | . . . . . . . . . . . . . . . . 1 . . . . . 1 . . 1 . . . . . . 1 . . . Alerts 1 | . . . . . . . . . . . . . . . . . . . . . . . . 1 . . . . . . . . . . . Weapon Failures 1 | . . . . . . . . . . . . . . . . . . . . . . . . . . . . . . . 1 . . . . Overload Shots . | . . . . . . . . . . . . . . . . . . . . . . . . . . . . . . . . . . . . Overflow Damage 8047 | . . . . . 1240 401 122 11 . . . 2 . . . . 627 . 156 . 5 373 . 395 509 . 151 . 293 204 1064 715 721 186 872 Projectiles 27 | . . . . . . . . . . . . . . . . . . . . . . . . . . . . . 27 . . . . . . Explosions 261 | . . . . . 7 31 . 11 . . . . . . . . . . . . 5 . . . . . . . 76 . 108 23 . . . Melee 7759 | . . . . . 1233 370 122 . . . . 2 . . . . 627 . 156 . . 373 . 395 509 . 151 . 190 204 956 692 721 186 872 Knockbacks 18 | . . . . . 7 . 1 . . . . . . . . . 2 . . . . 5 . 3 . . . . . . . . . . . Impact 17 | . . . . . 6 . 1 . . . . . . . . . 2 . . . . 5 . 3 . . . . . . . . . . . Kinetic . | . . . . . . . . . . . . . . . . . . . . . . . . . . . . . . . . . . . . Secondary 1 | . . . . . 1 . . . . . . . . . . . . . . . . . . . . . . . . . . . . . . Self-Inflicted Damage 267 | . 17 54 . . 89 84 . . . . . . . 23 . . . . . . . . . . . . . . . . . . . . . Shots 9 | . 1 2 . . 3 2 . . . . . . . 1 . . . . . . . . . . . . . . . . . . . . . Rammed . | . . . . . . . . . . . . . . . . . . . . . . . . . . . . . . . . . . . . Targets Rammed . | . . . . . . . . . . . . . . . . . . . . . . . . . . . . . . . . . . . . Kicked . | . . . . . . . . . . . . . . . . . . . . . . . . . . . . . . . . . . . . Crushed . | . . . . . . . . . . . . . . . . . . . . . . . . . . . . . . . . . . . . Highest Temperature 336 | . 264 6 . 30 117 336 5 . . . . . . . 250 . 221 81 133 . 146 245 . 5 115 62 . . 16 53 286 56 52 . 138 Average Temperature 69 | . 87 4 . 19 35 133 5 . . . . . . . 195 . 98 49 70 . 77 125 . 5 90 37 . . 12 19 89 5 12 . 28 Received Heat Transfer 1896 | . 159 . . 6 495 360 69 . . . . 27 . 12 . . . . . . . . . 138 126 . . 27 . 72 72 63 144 . 126 Effects 2 | . 1 . . . . 1 . . . . . . . . . . . . . . . . . . . . . . . . . . . . . Energy Bleed 1 | . . . . . . 1 . . . . . . . . . . . . . . . . . . . . . . . . . . . . . Interference 1 | . 1 . . . . . . . . . . . . . . . . . . . . . . . . . . . . . . . . . . Siege Activations . | . . . . . . . . . . . . . . . . . . . . . . . . . . . . . . . . . . . . Robots Corrupted 2 | . . . . . . 2 . . . . . . . . . . . . . . . . . . . . . . . . . . . . . Combat Hostiles 2 | . . . . . . 2 . . . . . . . . . . . . . . . . . . . . . . . . . . . . . Parts Fried 54 | . . . . . 22 11 . . . . . . . . . . 11 . 1 . . 2 . 6 1 . . . . . . . . . . Impact Corruptions 93 | . . . . . 38 11 2 . . . . . . . . . 21 . 4 . . 11 . 6 . . . . . . . . . . . Robots Melted . | . . . . . . . . . . . . . . . . . . . . . . . . . . . . . . . . . . . . Combat Hostiles . | . . . . . . . . . . . . . . . . . . . . . . . . . . . . . . . . . . . . Parts Melted 2 | . 1 . . . . . . . . . . . . . . . . . . . . 1 . . . . . . . . . . . . . Heat Transferred 1668 | . 668 . . . 50 350 . . . . . . . . . . . . . . . . 300 . . . . . 300 . . . . . . Parts Sabotaged . | . . . . . . . . . . . . . . . . . . . . . . . . . . . . . . . . . . . . Parts Stolen . | . . . . . . . . . . . . . . . . . . . . . . . . . . . . . . . . . . . . Parts Stripped . | . . . . . . . . . . . . . . . . . . . . . . . . . . . . . . . . . . . . Power Chain Reactions 4 | . 1 . . . 1 2 . . . . . . . . . . . . . . . . . . . . . . . . . . . . . Missiles Intercepted . | . . . . . . . . . . . . . . . . . . . . . . . . . . . . . . . . . . . . Alert | -11 -10 -10 -10 -9 -8 -8 -7 -7 -7 -7 -6 -6 -6 -6 -6 -5 -5 -5 -5 -5 -4 -4 -4 -4 -4 -4 -4 -4 -3 -3 -2 -2 -2 -1 -1 ------- Run | Scr Mat Min Exi Min Mat Sto Fac Low Low Zio Pro Fac Low Low Dat Pro Fac Upp Upp Zhi Pro Fac Was Fac Ext Cet Arc Hub Res Tes Res Qua Sec Acc Com Peak Influence 840 | . 220 329 . 45 444 840 544 . . . . 148 . . . . 279 . . . . 176 102 488 564 626 370 441 352 276 617 328 541 359 423 Initial 341 | . . 63 . . 17 114 341 . . . . . . . . . . . . . . 56 41 71 99 231 250 129 219 34 42 128 39 188 113 Average 200 | . 91 144 . 35 164 486 339 . . . . 47 . . . . 90 . . . . 76 68 215 273 469 339 277 109 151 375 194 188 199 277 Maximum Alert Level 3 | . 1 1 . . 2 3 2 . . . . . . . . . 1 . . . . . . 2 2 2 1 2 1 1 2 1 2 1 2 Low Security (%) 57 | 100 92 71 . 100 60 11 20 . . . . 100 . . . . 88 . . . . 100 100 41 42 . . 43 78 67 27 58 58 51 11 Level 1 27 | . 7 28 . . 32 14 53 . . . . . . . . . 11 . . . . . . 50 16 49 100 26 21 32 11 41 35 48 62 Level 2 15 | . . . . . 6 68 25 . . . . . . . . . . . . . . . . 8 40 50 . 30 . . 60 . 6 . 26 Level 3 . | . . . . . . 5 . . . . . . . . . . . . . . . . . . . . . . . . . . . . . Level 4 . | . . . . . . . . . . . . . . . . . . . . . . . . . . . . . . . . . . . . Level 5 . | . . . . . . . . . . . . . . . . . . . . . . . . . . . . . . . . . . . . High Security . | . . . . . . . . . . . . . . . . . . . . . . . . . . . . . . . . . . . . Max Security . | . . . . . . . . . . . . . . . . . . . . . . . . . . . . . . . . . . . . Squads Dispatched 76 | . 4 . . . 3 7 3 . . . . 5 . . . . 8 . . . . 5 . 9 . . . 2 4 5 9 5 3 3 1 Investigation 32 | . 3 . . . 2 1 2 . . . . 4 . . . . 4 . . . . 2 . 6 . . . . 2 1 3 1 . 1 . Extermination 21 | . . . . . . . . . . . . . . . . . 3 . . . . 2 . 2 . . . . 1 2 4 3 2 1 1 Reinforcement 18 | . 1 . . . 1 2 1 . . . . 1 . . . . 1 . . . . 1 . 1 . . . 2 1 2 1 1 1 1 . Assault 5 | . . . . . . 4 . . . . . . . . . . . . . . . . . . . . . . . . 1 . . . . Garrison . | . . . . . . . . . . . . . . . . . . . . . . . . . . . . . . . . . . . . Intercept . | . . . . . . . . . . . . . . . . . . . . . . . . . . . . . . . . . . . . Searches Triggered . | . . . . . . . . . . . . . . . . . . . . . . . . . . . . . . . . . . . . Data Miner Redirects 5 | . . . . . . . . . . . . . . . . . 1 . . . . . . 3 . . . . . . 1 . . . . Construction Impeded 1 | . . . . . . . . . . . . . . . . . . . . . . . . . . . . . . . 1 . . . . Haulers Reinforced 3 | . . . . . . . . . . . . . . . . . . . . . . 1 . . . . . . 1 1 . . . . . Active Scanning Responses . | . . . . . . . . . . . . . . . . . . . . . . . . . . . . . . . . . . . . Cargo Convoy Interrupts . | . . . . . . . . . . . . . . . . . . . . . . . . . . . . . . . . . . . . Stealth | -11 -10 -10 -10 -9 -8 -8 -7 -7 -7 -7 -6 -6 -6 -6 -6 -5 -5 -5 -5 -5 -4 -4 -4 -4 -4 -4 -4 -4 -3 -3 -2 -2 -2 -1 -1 --------- Run | Scr Mat Min Exi Min Mat Sto Fac Low Low Zio Pro Fac Low Low Dat Pro Fac Upp Upp Zhi Pro Fac Was Fac Ext Cet Arc Hub Res Tes Res Qua Sec Acc Com Distress Signals 60 | . 2 . . 1 1 1 . . . . . 1 . . . . 2 . . . . . . 5 1 1 . 1 2 2 6 3 3 . 28 Communications Jammed . | . . . . . . . . . . . . . . . . . . . . . . . . . . . . . . . . . . . . Distress Signals . | . . . . . . . . . . . . . . . . . . . . . . . . . . . . . . . . . . . . Times Spotted 509 | . 22 9 . 4 45 50 12 4 . . 1 15 . 7 . . 31 5 3 . 12 16 6 32 18 11 2 14 21 17 51 29 31 12 29 Peak Tracking Total 9 | . 4 3 . 2 7 9 5 3 . . 3 5 . 3 . . 5 5 2 . 5 4 6 4 6 5 1 7 6 6 8 5 8 4 8 Tactical Retreats 76 | . 1 . . 1 6 1 3 . . . 1 5 . 3 . . 5 . 2 . 3 1 1 9 . . . . 7 2 9 2 6 2 6 Traps | -11 -10 -10 -10 -9 -8 -8 -7 -7 -7 -7 -6 -6 -6 -6 -6 -5 -5 -5 -5 -5 -4 -4 -4 -4 -4 -4 -4 -4 -3 -3 -2 -2 -2 -1 -1 ------- Run | Scr Mat Min Exi Min Mat Sto Fac Low Low Zio Pro Fac Low Low Dat Pro Fac Upp Upp Zhi Pro Fac Was Fac Ext Cet Arc Hub Res Tes Res Qua Sec Acc Com Traps Triggered 17 | . . 2 . . . 3 1 . . . . 2 . . . . . . . . . 2 . 1 . . . . . . 3 3 . . . Indirectly . | . . . . . . . . . . . . . . . . . . . . . . . . . . . . . . . . . . . . Trap Hack Attempts . | . . . . . . . . . . . . . . . . . . . . . . . . . . . . . . . . . . . . Triggered . | . . . . . . . . . . . . . . . . . . . . . . . . . . . . . . . . . . . . Disarmed . | . . . . . . . . . . . . . . . . . . . . . . . . . . . . . . . . . . . . Reprogrammed 71 | . 4 . . . . 5 . . . . . 8 . . . . 10 . . . . . . 18 2 . . . . 12 . 6 . . 6 Reused 17 | . 1 . . . . . . . . . . 2 . . . . 1 . 2 . . . . 5 . . . . . 2 . . . . 4 Traps Extracted . | . . . . . . . . . . . . . . . . . . . . . . . . . . . . . . . . . . . . Installed 4 | . . . . . . . . . . . . . . . . . . . 4 . . . . . . . . . . . . . . . . Triggered 24 | . 1 . . 1 . . . 1 . . . 2 2 . . 1 1 1 2 . . 1 . 5 . . . . . 2 . . . . 4 Most Traps Carried 2 | . . . . . . . . . . . . . . . . . . . 2 . . . . . . . . . . . . . . . . Machines | -11 -10 -10 -10 -9 -8 -8 -7 -7 -7 -7 -6 -6 -6 -6 -6 -5 -5 -5 -5 -5 -4 -4 -4 -4 -4 -4 -4 -4 -3 -3 -2 -2 -2 -1 -1 ---------- Run | Scr Mat Min Exi Min Mat Sto Fac Low Low Zio Pro Fac Low Low Dat Pro Fac Upp Upp Zhi Pro Fac Was Fac Ext Cet Arc Hub Res Tes Res Qua Sec Acc Com Machines Disabled 27 | . . . . . . 2 1 . . . . . . . . . 2 . . . . . . 4 1 . . . . 2 . 5 9 . 1 Max in Single Turn 1 | . . . . . . 1 1 . . . . . . . . . 1 . . . . . . . . . . . . 1 . 1 1 . 1 Garrison Access 16 | . . . . . . . 2 . . . . 2 . . . . 3 . . . . 2 . 1 . . . . 2 1 . 1 1 1 . Network Hub 1 | . . . . . . . . . . . . . . . . . . . . . . . . . . . . 1 . . . . . . . Machines Sabotaged . | . . . . . . . . . . . . . . . . . . . . . . . . . . . . . . . . . . . . Garrisons Compromised . | . . . . . . . . . . . . . . . . . . . . . . . . . . . . . . . . . . . . Overloaded Fab Kills . | . . . . . . . . . . . . . . . . . . . . . . . . . . . . . . . . . . . . Hacking | -11 -10 -10 -10 -9 -8 -8 -7 -7 -7 -7 -6 -6 -6 -6 -6 -5 -5 -5 -5 -5 -4 -4 -4 -4 -4 -4 -4 -4 -3 -3 -2 -2 -2 -1 -1 --------- Run | Scr Mat Min Exi Min Mat Sto Fac Low Low Zio Pro Fac Low Low Dat Pro Fac Upp Upp Zhi Pro Fac Was Fac Ext Cet Arc Hub Res Tes Res Qua Sec Acc Com Machines Accessed 237 | . 9 2 1 . 10 6 11 1 1 . . 25 . 1 4 . 25 1 . 4 . 19 . 20 6 1 . 3 18 11 14 15 16 3 10 Terminals 129 | . 7 . . . 8 5 4 . . . . 14 . . . . 13 . . . . 9 . 8 5 1 . 3 10 5 8 10 11 1 7 Fabricators 24 | . . . . . . . 2 . . . . 5 . . . . 3 . . . . 3 . 4 . . . . 2 1 3 . . 1 . Repair Stations 22 | . . . . . . . 1 . . . . . . . . . 4 . . . . 2 . 3 1 . . . 2 1 2 2 1 . 3 Recycling Units 13 | . 2 . . . 1 1 1 . . . . 2 . . . . 1 . . . . 2 . 1 . . . . 1 . 1 . . . . Scanalyzers 18 | . . . . . 1 . 1 . . . . 2 . . . . 1 . . . . 1 . 3 . . . . 1 3 . 2 3 . . Garrison Access 16 | . . . . . . . 2 . . . . 2 . . . . 3 . . . . 2 . 1 . . . . 2 1 . 1 1 1 . Total Hacks 928 | . 27 2 1 . 44 16 42 1 1 . . 87 . 1 26 . 98 1 . 17 . 77 . 78 18 1 . 16 79 53 81 68 53 11 29 Successful 755 | . 13 2 1 . 32 9 32 1 1 . . 72 . 1 26 . 88 1 . 17 . 66 . 76 15 1 . 13 60 47 58 55 42 7 19 Failed 172 | . 14 . . . 12 7 10 . . . . 15 . . . . 10 . . . . 11 . 2 3 . . 3 18 6 23 13 11 4 10 Catastrophic 13 | . . . . . . 1 . . . . . 2 . . . . . . . . . 1 . . . . . . . . 6 2 . . 1 Database Lockouts 1 | . . . . . . . . . . . . . . . . . . . . . . . . . . . . . 1 . . . . . . Manual 351 | . 17 . . . 15 6 15 . . . . 35 . . . . 42 . . . . 27 . 22 3 1 . 7 39 18 42 29 15 4 14 Terminals 555 | . 25 . . . 28 14 15 . . . . 54 . . . . 59 . . . . 37 . 34 15 1 . 16 54 31 55 49 41 6 21 Fabricators 105 | . . . . . . . 10 . . . . 20 . . . . 15 . . . . 15 . 12 . . . . 8 7 14 . . 4 . Repair Stations 77 | . . . . . . . 2 . . . . . . . . . 13 . . . . 5 . 11 3 . . . 4 4 11 12 4 . 8 Recycling Units 30 | . 2 . . . 2 2 1 . . . . 6 . . . . 2 . . . . 8 . 3 . . . . 3 . 1 . . . . Scanalyzers 94 | . . . . . 14 . 11 . . . . 5 . . . . 6 . . . . 10 . 17 . . . . 8 10 . 6 7 . . Garrison Access 17 | . . . . . . . 3 . . . . 2 . . . . 3 . . . . 2 . 1 . . . . 2 1 . 1 1 1 . Terminal Hacks 368 | . 8 2 1 . 13 5 5 1 1 . . 33 . 1 26 . 40 1 . 17 . 23 . 27 10 1 . 8 30 21 30 27 27 4 6 Record 18 | . . . 1 . . . . 1 . . . . . . 11 . . . . 5 . . . . . . . . . . . . . . . Part Schematic 48 | . 2 . . . 1 . . . . . . 10 . . 9 . 5 . . 4 . 3 . 1 1 . . . 4 3 4 1 . . . Robot Schematic 3 | . . . . . . . . . . . . . . . 3 . . . . . . . . . . . . . . . . . . . . Robot Analysis 13 | . 1 . . . . . . . . . . . . . . . . . . 4 . . . . . . . . 1 4 . 3 . . . Prototype ID Bank 39 | . 1 . . . 4 . 1 . . . . 2 . . 3 . 1 . . 4 . 2 . 1 2 . . . 6 1 3 5 3 . . Open Door 12 | . . 2 . . . 2 . . 1 . . . . 1 . . . 1 . . . . . . . 1 . . . . 1 . 2 . 1 Level Access Points 2 | . . . . . . . . . . . . . . . . . . . . . . . . . . . . 1 . . . . 1 . . Branch Access Points 10 | . 1 . . . 1 . 1 . . . . 1 . . . . 2 . . . . 1 . 1 . . . . 1 . 1 . . . . Machine Index 7 | . . . . . . . . . . . . . . . . . 1 . . . . . . 1 . . . . 1 1 1 1 . . 1 Terminal Index 9 | . . . . . 1 . 1 . . . . . . . . . . . . . . . . . 1 . . 1 1 . 1 1 1 1 . Fabricator Index 2 | . . . . . . . . . . . . . . . . . 1 . . . . 1 . . . . . . . . . . . . . Scanalyzer Index 2 | . . . . . . . . . . . . . . . . . 1 . . . . . . . . . . . . . . . 1 . . Garrison Index 3 | . . . . . . . . . . . . . . . . . . . . . . 1 . . . . . 1 . . . . 1 . . Alert Level 11 | . . . . . . . . . . . . . . . . . 1 . . . . 1 . 1 . . . 1 2 1 1 . 2 . 1 Unreport Threat 39 | . . . . . 2 1 1 . . . . 4 . . . . 4 . . . . 1 . 5 1 . . . 4 1 6 5 3 1 . Locate Traps 35 | . . . . . 2 1 . . . . . 5 . . . . 2 . . . . 4 . 4 1 . . 2 2 2 2 2 3 1 2 Reprogram Traps 15 | . 1 . . . . 1 . . . . . 2 . . . . 2 . . . . . . 3 1 . . . . 3 . 1 . . 1 Maintenance Status 2 | . . . . . . . . . . . . . . . . . 1 . . . . . . . . . . . . 1 . . . . . Surveillance Status 1 | . . . . . . . . . . . . . . . . . . . . . . . . . . . . . . . 1 . . . . Recall Investigation 13 | . . . . . . . . . . . . 2 . . . . 3 . . . . 1 . 2 . . . . 2 . 3 . . . . Recall Extermination 12 | . . . . . . . . . . . . . . . . . 3 . . . . 1 . 2 . . . . . 1 2 2 1 . . Recall Reinforcements 2 | . . . . . . . . . . . . . . . . . . . . . . 1 . . . . . . 1 . . . . . . Hauler Manifests 8 | . . . . . 1 . . . . . . 1 . . . . 2 . . . . 1 . . . . . . 1 1 1 . . . . Registered Components 2 | . . . . . . . . . . . . . . . . . 1 . . . . 1 . . . . . . . . . . . . . Registered Prototypes 1 | . . . . . . . . . . . . . . . . . . . . . . . . . . . . . 1 . . . . . . Zone Layout 59 | . 2 . . . 1 . 1 . . . . 6 . . . . 10 . . . . 4 . 6 3 . . 2 3 2 3 6 9 1 . Fabricator Hacks 57 | . . . . . . . 4 . . . . 10 . . . . 9 . . . . 8 . 7 . . . . 4 6 7 . . 2 . Network Status 6 | . . . . . . . 1 . . . . 1 . . . . 1 . . . . 1 . 1 . . . . . . 1 . . . . Load Schematic 26 | . . . . . . . 1 . . . . 5 . . . . 5 . . . . 3 . 3 . . . . 2 3 3 . . 1 . Build 25 | . . . . . . . 2 . . . . 4 . . . . 3 . . . . 4 . 3 . . . . 2 3 3 . . 1 . Repair Station Hacks 72 | . . . . . . . 2 . . . . . . . . . 12 . . . . 5 . 11 3 . . . 3 4 10 10 4 . 8 Scan Component 34 | . . . . . . . 1 . . . . . . . . . 6 . . . . 2 . 5 1 . . . 1 2 5 5 2 . 4 Repair 34 | . . . . . . . 1 . . . . . . . . . 6 . . . . 2 . 5 1 . . . 1 2 5 5 2 . 4 Refit 4 | . . . . . . . . . . . . . . . . . . . . . . 1 . 1 1 . . . 1 . . . . . . Recycling Unit Hacks 11 | . . . . . 1 1 1 . . . . 2 . . . . 1 . . . . 2 . 1 . . . . 1 . 1 . . . . Report Inventory 11 | . . . . . 1 1 1 . . . . 2 . . . . 1 . . . . 2 . 1 . . . . 1 . 1 . . . . Scanalyzer 91 | . . . . . 13 . 11 . . . . 5 . . . . 6 . . . . 10 . 17 . . . . 8 8 . 6 7 . . Insert Component 42 | . . . . . 6 . 4 . . . . 3 . . . . 1 . . . . 3 . 8 . . . . 3 3 . 6 5 . . Analyze 49 | . . . . . 7 . 7 . . . . 2 . . . . 5 . . . . 7 . 9 . . . . 5 5 . . 2 . . Garrison Access Hacks 15 | . . . . . . . 1 . . . . 2 . . . . 3 . . . . 2 . 1 . . . . 2 1 . 1 1 1 . Seal Access 15 | . . . . . . . 1 . . . . 2 . . . . 3 . . . . 2 . 1 . . . . 2 1 . 1 1 1 . Unauthorized Hacks 141 | . 5 . . . 5 3 8 . . . . 20 . . . . 17 . . . . 16 . 12 2 . . 5 12 7 10 11 3 . 5 Terminals 82 | . 3 . . . 4 2 5 . . . . 8 . . . . 9 . . . . 4 . 5 2 . . 5 7 5 4 11 3 . 5 Track 17 | . . . . . . . . . . . . 3 . . . . 2 . . . . 1 . 1 1 . . 1 1 1 . 4 1 . 1 Assimilate 21 | . 1 . . . . . 1 . . . . 1 . . . . 3 . . . . . . 2 . . . . 3 2 . 3 2 . 3 Botnet 27 | . 2 . . . 3 1 3 . . . . 3 . . . . 3 . . . . 2 . 1 1 . . 2 2 1 1 2 . . . Disrupt 3 | . . . . . . . . . . . . . . . . . . . . . . . . . . . . 1 . . 1 1 . . . Operators 14 | . . . . . 1 1 1 . . . . 1 . . . . 1 . . . . 1 . 1 . . . 1 1 1 2 1 . . 1 Fabricators 37 | . . . . . . . 2 . . . . 8 . . . . 6 . . . . 6 . 5 . . . . 3 1 6 . . . . Report 5 | . . . . . . . 1 . . . . 1 . . . . 1 . . . . 1 . . . . . . . . 1 . . . . Prioritize 18 | . . . . . . . . . . . . 3 . . . . 2 . . . . 3 . 4 . . . . 2 1 3 . . . . Liberate 3 | . . . . . . . . . . . . 1 . . . . . . . . . 1 . . . . . . . . 1 . . . . Haulers 6 | . . . . . . . 1 . . . . 1 . . . . 1 . . . . 1 . . . . . . 1 . 1 . . . . Recompile 5 | . . . . . . . . . . . . 2 . . . . 2 . . . . . . 1 . . . . . . . . . . . Repair Stations 1 | . . . . . . . . . . . . . . . . . 1 . . . . . . . . . . . . . . . . . . Mechanics 1 | . . . . . . . . . . . . . . . . . 1 . . . . . . . . . . . . . . . . . . Recycling Units 19 | . 2 . . . 1 1 . . . . . 4 . . . . 1 . . . . 6 . 2 . . . . 2 . . . . . . Monitor 2 | . . . . . . . . . . . . 1 . . . . . . . . . 1 . . . . . . . . . . . . . Reject 6 | . . . . . . . . . . . . 1 . . . . 1 . . . . 2 . 1 . . . . 1 . . . . . . Recyclers 4 | . . . . . . . . . . . . 1 . . . . . . . . . 1 . 1 . . . . 1 . . . . . . Mask 3 | . . . . . . . . . . . . 1 . . . . . . . . . 2 . . . . . . . . . . . . . Tunnel 4 | . 2 . . . 1 1 . . . . . . . . . . . . . . . . . . . . . . . . . . . . . Scanalyzers 1 | . . . . . . . . . . . . . . . . . . . . . . . . . . . . . . 1 . . . . . Researchers 1 | . . . . . . . . . . . . . . . . . . . . . . . . . . . . . . 1 . . . . . Garrison Access 1 | . . . . . . . 1 . . . . . . . . . . . . . . . . . . . . . . . . . . . . Jam 1 | . . . . . . . 1 . . . . . . . . . . . . . . . . . . . . . . . . . . . . Data Cores Recovered . | . . . . . . . . . . . . . . . . . . . . . . . . . . . . . . . . . . . . Used . | . . . . . . . . . . . . . . . . . . . . . . . . . . . . . . . . . . . . Hacking Detections 150 | . 7 . . . 9 3 7 . . . . 13 . . . . 14 . . . . 12 . 16 6 . . 3 9 8 10 11 11 2 9 Full Trace Events 22 | . . . . . 1 1 1 . . . . 2 . . . . 2 . . . . 2 . 5 . . . . 2 1 3 1 . 1 . Feedback Events 1 | . . . . . . . . . . . . . . . . . 1 . . . . . . . . . . . . . . . . . . Corruption 1 | . . . . . . . . . . . . . . . . . 1 . . . . . . . . . . . . . . . . . . Feedback Blocked . | . . . . . . . . . . . . . . . . . . . . . . . . . . . . . . . . . . . . Robot Schematics Acquired 7 | . . . . . . . . . . 4 . . . . 3 . . . . . . . . . . . . . . . . . . . . Robots Built 7 | . . . . . . . 1 . . . . . . . . . . . . . . 3 . 3 . . . . . . . . . . . Authchips . | . . . . . . . . . . . . . . . . . . . . . . . . . . . . . . . . . . . . Time 317 | . . . . . . . 81 . . . . . . . . . . . . . . 84 . 152 . . . . . . . . . . . Total Robot Build Rating 34 | . . . . . . . 1 . . . . . . . . . . . . . . 18 . 15 . . . . . . . . . . . Part Schematics Acquired 92 | . 2 . . . 7 . 4 . . 14 . 12 . . 9 . 6 . . 4 . 5 . 9 1 . . . 7 6 4 1 1 . . Parts Built 27 | . . . . . . . 1 . . . . 5 . . . . 4 . . . . 4 . 2 . . . . 2 5 3 . . 1 . Authchips 8 | . . . . . . . . . . . . 2 . . . . 2 . . . . 1 . 1 . . . . . 2 . . . . . Time 1013 | . . . . . . . 73 . . . . 163 . . . . 114 . . . . 113 . 122 . . . . 65 119 182 . . 62 . Total Part Build Rating 191 | . . . . . . . 3 . . . . 32 . . . . 24 . . . . 26 . 14 . . . . 15 44 26 . . 7 . Parts Repaired 34 | . . . . . . . 1 . . . . . . . . . 6 . . . . 2 . 5 1 . . . 1 2 5 5 2 . 4 Time 1220 | . . . . . . . 38 . . . . . . . . . 178 . . . . 130 . 218 56 . . . 80 62 126 134 60 . 138 Parts Recycled . | . . . . . . . . . . . . . . . . . . . . . . . . . . . . . . . . . . . . Recycled Matter . | . . . . . . . . . . . . . . . . . . . . . . . . . . . . . . . . . . . . Retrieved Matter . | . . . . . . . . . . . . . . . . . . . . . . . . . . . . . . . . . . . . Retrieved Components . | . . . . . . . . . . . . . . . . . . . . . . . . . . . . . . . . . . . . Parts Scanalyzed 30 | . . . . . 6 . 4 . . . . 2 . . . . 1 . . . . 2 . 8 . . . . 3 3 . . 1 . . Part Schematics Acquired 30 | . . . . . 6 . 4 . . . . 2 . . . . 1 . . . . 2 . 8 . . . . 3 3 . . 1 . . Parts Damaged 3 | . . . . . . . . . . . . . . . . . . . . . . . . 1 . . . . 1 . . . 1 . . Bothacking | -11 -10 -10 -10 -9 -8 -8 -7 -7 -7 -7 -6 -6 -6 -6 -6 -5 -5 -5 -5 -5 -4 -4 -4 -4 -4 -4 -4 -4 -3 -3 -2 -2 -2 -1 -1 ------------ Run | Scr Mat Min Exi Min Mat Sto Fac Low Low Zio Pro Fac Low Low Dat Pro Fac Upp Upp Zhi Pro Fac Was Fac Ext Cet Arc Hub Res Tes Res Qua Sec Acc Com Used RIF Installer . | . . . . . . . . . . . . . . . . . . . . . . . . . . . . . . . . . . . . Robots Hacked 7 | . . . 4 . . . 1 . . . . . . . 1 . . . . . . . . . . . . . . . . . . . 1 Non-combat 4 | . . . 3 . . . 1 . . . . . . . . . . . . . . . . . . . . . . . . . . . . Combat 2 | . . . 1 . . . . . . . . . . . 1 . . . . . . . . . . . . . . . . . . . . Robot Hacks Applied 6 | . . . 4 . . . 1 . . . . . . . 1 . . . . . . . . . . . . . . . . . . . . parse_system 6 | . . . 4 . . . 1 . . . . . . . 1 . . . . . . . . . . . . . . . . . . . . Manual 1 | . . . . . . . . . . . . . . . . . . . . . . . . . . . . . . . . . . . 1 Relay Couplers Released . | . . . . . . . . . . . . . . . . . . . . . . . . . . . . . . . . . . . . Fabnet Peak Effective % . | . . . . . . . . . . . . . . . . . . . . . . . . . . . . . . . . . . . . Robots Rewired 6 | . . . . . . . . . . . . . . . . . . . . . . . . . 6 . . . . . . . . . . Allies Hacked 1 | . . . . . . . 1 . . . . . . . . . . . . . . . . . . . . . . . . . . . . Hacks Repelled . | . . . . . . . . . . . . . . . . . . . . . . . . . . . . . . . . . . . . Allies | -11 -10 -10 -10 -9 -8 -8 -7 -7 -7 -7 -6 -6 -6 -6 -6 -5 -5 -5 -5 -5 -4 -4 -4 -4 -4 -4 -4 -4 -3 -3 -2 -2 -2 -1 -1 -------- Run | Scr Mat Min Exi Min Mat Sto Fac Low Low Zio Pro Fac Low Low Dat Pro Fac Upp Upp Zhi Pro Fac Was Fac Ext Cet Arc Hub Res Tes Res Qua Sec Acc Com Total Allies 86 | . 1 . . . . 12 2 . . 3 . 1 . . . . 3 . . . . 6 20 5 20 5 . . 1 1 2 2 1 . 1 Largest Group 20 | . 1 1 . . . 10 1 . . 3 3 1 . . . . 1 1 . . . 3 19 13 18 20 20 16 1 1 2 1 1 . 1 Highest-Rated Group 1169 | . 10 10 . . . 173 26 . . 78 78 26 . . . . 26 10 . . . 138 702 539 832 1169 1169 884 26 45 128 26 26 . 45 Highest-Rated Ally 159 | . 10 10 . . . 31 26 . . 39 39 26 . . . . 26 10 . . . 46 50 50 159 159 159 96 26 45 64 26 26 . 45 Total Orders 18 | . . . . . . . 10 . . . . . . . . . . 2 . . . . . . 3 . . . . 2 . . . . 1 STAY 3 | . . . . . . . . . . . . . . . . . . 1 . . . . . . . . . . . 1 . . . . 1 FOLLOW 2 | . . . . . . . . . . . . . . . . . . 1 . . . . . . . . . . . 1 . . . . . EXPLORE 13 | . . . . . . . 10 . . . . . . . . . . . . . . . . . 3 . . . . . . . . . . Ally Attacks 695 | . . . . . . 157 . . . . 12 . . . . . . . . . . 35 128 116 84 55 44 62 . . 2 . . . . Total Damage 20539 | . . . . . . 2232 . . . . 236 . . . . . . . . . . 803 5458 3510 2837 1700 1549 2142 . . 72 . . . . Kills 86 | . . . . . . 22 . . . . . . . . . . . . . . . 4 10 15 11 11 4 9 . . . . . . . Allies Corrupted 2 | . . . . . . 1 . . . . . . . . . . . . . . . . . . . . . 1 . . . . . . . Allies Melted . | . . . . . . . . . . . . . . . . . . . . . . . . . . . . . . . . . . . . Intel | -11 -10 -10 -10 -9 -8 -8 -7 -7 -7 -7 -6 -6 -6 -6 -6 -5 -5 -5 -5 -5 -4 -4 -4 -4 -4 -4 -4 -4 -3 -3 -2 -2 -2 -1 -1 ------- Run | Scr Mat Min Exi Min Mat Sto Fac Low Low Zio Pro Fac Low Low Dat Pro Fac Upp Upp Zhi Pro Fac Was Fac Ext Cet Arc Hub Res Tes Res Qua Sec Acc Com Robot Analysis Total 13 | . 1 . . . . . . . . . . . . . . . . . . 4 . . . . . . . . 1 4 . 3 . . . Derelict Logs Recovered 16 | . . . . . . . . 2 2 . 1 . 2 2 . 1 . 2 2 . 2 . . . . . . . . . . . . . . Drone Launches 23 | . . . . . . 12 7 . . . . . . . . . . . . . . . . . 4 . . . . . . . . . . Drone Recoveries 7 | . . . . . . . 6 . . . . . . . . . . . . . . . . . 1 . . . . . . . . . . Exploration | -11 -10 -10 -10 -9 -8 -8 -7 -7 -7 -7 -6 -6 -6 -6 -6 -5 -5 -5 -5 -5 -4 -4 -4 -4 -4 -4 -4 -4 -3 -3 -2 -2 -2 -1 -1 ------------- Run | Scr Mat Min Exi Min Mat Sto Fac Low Low Zio Pro Fac Low Low Dat Pro Fac Upp Upp Zhi Pro Fac Was Fac Ext Cet Arc Hub Res Tes Res Qua Sec Acc Com Turns Passed 25421 | 75 1136 757 407 337 1790 927 614 618 341 237 423 1083 314 622 112 443 1177 577 614 92 422 892 140 1514 1005 216 113 143 1003 1189 1780 1192 1367 676 1073 Spaces Moved 38792 | 62 845 554 284 226 869 582 1122 1549 1127 818 1305 2221 754 1227 88 349 1996 1190 1370 177 1198 1851 249 2910 1283 263 53 178 2242 1631 2787 1777 1759 740 1156 Core 1 | 1 . . . . . . . . . . . . . . . . . . . . . . . . . . . . . . . . . . . Treads 1 | . . . . . . 1 . . . . . . . . . . . . . . . . . . . . . . . . . . . . . Legs . | . . . . . . . . . . . . . . . . . . . . . . . . . . . . . . . . . . . . Wheels 3268 | 61 845 554 284 226 869 429 . . . . . . . . . . . . . . . . . . . . . . . . . . . . . Hover 8859 | . . . . . . . . . . . . . . . . . . . . . . . . . . . . . . 640 2787 1777 1759 740 1156 Flight 26663 | . . . . . . 152 1122 1549 1127 818 1305 2221 754 1227 88 349 1996 1190 1370 177 1198 1851 249 2910 1283 263 53 178 2242 991 . . . . . Fastest Speed 27 | 50 100 125 140 140 131 27 27 27 27 27 27 27 37 37 120 120 30 37 37 30 30 30 30 27 30 30 30 30 28 38 38 40 40 36 33 Average Speed 43 | 99 119 127 140 140 151 121 32 27 27 27 27 31 37 38 120 120 40 37 37 33 30 30 30 31 30 30 30 50 30 38 38 40 40 36 40 Slowest Speed 490 | 100 130 140 140 140 205 490 97 27 27 27 27 37 37 120 120 120 120 37 37 37 30 30 103 103 103 103 30 103 103 48 40 140 140 40 136 Overloaded Moves 22 | . . . . . . . . . . . . . . . . . . . . . . . . 22 . . . . . . . . . . . Propulsion Burnouts . | . . . . . . . . . . . . . . . . . . . . . . . . . . . . . . . . . . . . Robots Hopped 52 | . . . . . . 2 16 . . . . 6 . 2 . . 6 . . . . 1 . 8 1 . . . 4 6 . . . . . Cave-ins Triggered 1 | . . . . . . . . . . . . . . 1 . . . . . . . . . . . . . . . . . . . . . Teleports 1 | . . . . . . . . . . . . . . . . . . . . . . . . . . . . . . . . . 1 . . Exploration Rate (%) 67 | 5 96 100 64 34 65 81 43 97 91 84 88 59 80 96 75 46 40 95 96 60 98 31 89 44 95 70 69 20 47 94 45 95 70 22 38 Regions Visited 35 Branch Regions 24 Pre-discovered Areas 18 | . 2 . 1 1 1 1 . . 1 4 . . . 1 1 . . 1 . 3 1 . . . . . . . . . . . . . . Known Exits Taken 29 | . 1 . . . 1 1 1 1 1 1 1 1 1 1 1 1 1 1 1 1 1 . . 1 1 1 1 1 1 1 1 1 1 1 . Unknown Exits Taken 4 | 1 . 1 1 1 . . . . . . . . . . . . . . . . . . . . . . . . . . . . . . . Scrap Searched 32 | . . 1 . . . . . 5 4 1 3 . 3 4 . . . 6 3 . 2 . . . . . . . . . . . . . . Spaces Dug 709 | . 4 25 . . 19 5 21 38 9 . 11 41 8 36 . 7 40 13 9 . 26 38 . 59 . . . 6 62 39 77 33 35 18 30 Terrain Destroyed 947 | . 10 49 . . 31 35 21 47 9 . 11 41 8 39 . 7 48 13 9 . 57 42 1 59 . . . 6 81 39 137 64 35 18 30 Melee 556 | . . . . . 7 5 21 24 9 . 11 41 8 28 . 6 27 13 8 . 9 38 . 52 . . . 6 46 28 75 31 28 18 17 Projectile 64 | . . . . . . . . . . . . . . . . 1 2 . 1 . 1 . 1 7 . . . . 16 11 2 2 7 . 13 AOE 327 | . 10 49 . . 24 30 . 23 . . . . . 11 . . 19 . . . 47 4 . . . . . . 19 . 60 31 . . . Terrain Rammed . | . . . . . . . . . . . . . . . . . . . . . . . . . . . . . . . . . . . . Walls Destroyed . | . . . . . . . . . . . . . . . . . . . . . . . . . . . . . . . . . . . . Machines Disabled . | . . . . . . . . . . . . . . . . . . . . . . . . . . . . . . . . . . . . Actions | -11 -10 -10 -10 -9 -8 -8 -7 -7 -7 -7 -6 -6 -6 -6 -6 -5 -5 -5 -5 -5 -4 -4 -4 -4 -4 -4 -4 -4 -3 -3 -2 -2 -2 -1 -1 --------- Run | Scr Mat Min Exi Min Mat Sto Fac Low Low Zio Pro Fac Low Low Dat Pro Fac Upp Upp Zhi Pro Fac Was Fac Ext Cet Arc Hub Res Tes Res Qua Sec Acc Com Total 45188 | 72 929 592 291 244 1156 711 1295 1707 1149 831 1356 2499 772 1320 95 360 2237 1300 1455 209 1232 2077 305 3389 1835 394 146 218 2461 2108 3297 2124 2295 1095 1632 Wait 3827 | . 35 8 . 16 87 9 126 125 9 13 37 160 4 52 3 1 119 92 56 8 14 131 43 336 459 109 88 29 68 346 269 153 346 288 188 Move 38656 | 61 844 553 283 225 868 577 1091 1548 1126 817 1304 2208 753 1222 87 348 1984 1189 1369 176 1197 1849 248 2893 1280 262 52 177 2233 1618 2786 1776 1758 739 1155 Hop 49 | . . . . . . 2 14 . . . . 6 . 2 . . 5 . . . . 1 . 8 1 . . . 4 6 . . . . . Pick Up 236 | 5 14 8 . 1 32 10 8 . . . . 11 1 4 . . 17 . 6 4 . 7 2 13 2 3 . . 17 14 11 13 15 4 14 Fast Attach 134 | 6 2 . . . 7 9 3 . 2 . 1 4 2 . 1 1 6 3 . 9 . 5 . 10 5 2 2 1 7 7 6 5 7 4 17 Attach 112 | . 2 2 1 . 5 13 4 1 . . . 5 . 3 1 1 10 . . 2 . 4 . 6 4 5 . . 1 5 4 2 9 3 19 Detach 58 | . . 1 1 . 1 4 1 1 . . 1 3 . . 1 1 5 1 . 1 . 2 . 7 4 4 . . 1 2 1 1 2 1 11 Swap 336 | . 5 10 2 1 26 17 6 5 1 . . 7 1 1 . . 13 . 2 . 6 7 3 4 2 1 . 3 20 25 41 48 43 11 25 Drop 253 | . 6 1 . . 32 17 10 . 2 . 2 13 3 5 1 1 13 2 6 9 . 7 2 14 8 3 2 . 21 12 14 14 14 6 13 Fire 176 | . 21 9 . 1 15 13 . 3 . . . . . 2 . 1 7 . 1 . 6 2 7 7 . 1 . . 27 11 6 5 11 . 20 Melee 1266 | . . . 4 . 83 34 32 24 9 1 11 46 8 29 1 6 58 13 11 . 9 62 . 91 53 4 2 8 62 62 159 85 90 39 170 Ram . | . . . . . . . . . . . . . . . . . . . . . . . . . . . . . . . . . . . . Kick . | . . . . . . . . . . . . . . . . . . . . . . . . . . . . . . . . . . . . Crush . | . . . . . . . . . . . . . . . . . . . . . . . . . . . . . . . . . . . . Escape Stasis 58 | . . . . . . . . . . . . 36 . . . . . . . . . . . . . . . . . . . 22 . . . Rewire 17 | . . . . . . . . . . . . . . . . . . . . . . . . . 17 . . . . . . . . . . Trap 4 | . . . . . . . . . . . . . . . . . . . 4 . . . . . . . . . . . . . . . . Miscellaneous 6 | . . . . . . 6 . . . . . . . . . . . . . . . . . . . . . . . . . . . . . Route ------- -11/Scrapyard -10/Materials (discovered 4 exits: [*Mat x3] / *Min) -10/Mines (discovered 3 exits: [*Mat x2] / *Exi) -10/Exiles -9/Mines -8/Materials (discovered 4 exits: *Fac x2 / *Sto x2) -8/Storage -7/Factory (discovered 3 exits: *Fac / *Low x2) -7/Lower Caves -7/Lower Caves (discovered 2 exits: *Fac / *Zio) -7/Zion -6/Proximity Caves -6/Factory (discovered 4 exits: *Fac x2 / *Low x2) -6/Lower Caves -6/Lower Caves (discovered 2 exits: *Fac / *Dat) -6/Data Miner -5/Proximity Caves -5/Factory (discovered 3 exits: *Fac / *Upp x2) -5/Upper Caves -5/Upper Caves (discovered 2 exits: *Fac / *Zhi) -5/Zhirov -4/Proximity Caves -4/Factory (discovered 5 exits: *Upp x2 / Ext x2 / Arm) -4/Waste -4/Factory (discovered 7 exits: *Res x2 / *Upp x2 / *Ext x2 / Arm) -4/Extension (discovered 2 exits: *Res / *Cet) -4/Cetus -4/Archives -4/Hub_04(d) (discovered 4 exits: *Res x4) -3/Research (discovered 3 exits: *Res / *Tes x2) -3/Testing -2/Research (discovered 3 exits: *Acc / *Qua x2) -2/Quarantine (discovered 2 exits: *Acc / *Sec) -2/Section 7 -1/Access -1/Command (discovered 2 exits: [*Sur x2]) 0b11 Command History --------- Turn | Location | Event 12 | -11/Scrapyard | Discovered new exit (range 15) 76 | -11/Scrapyard | Entered Materials 144 | -10/Materials | Discovered new exit (range 15) 306 | -10/Materials | Build established: Mutant 489 | -10/Materials | Identified exit to Mines 749 | -10/Materials | Discovered new exit (range 3) 1159 | -10/Materials | Discovered new exit (range 4) 1212 | -10/Materials | Entered Mines 1212 | -10/Mines | Accompanied by 1 ally 1295 | -10/Mines | Deemed a non-threat by the Exiles lab entrance 1295 | -10/Mines | Discovered new exit (range 5) 1315 | -10/Mines | Found the Drone Emporium 1319 | -10/Mines | Found Prototype Device 1326 | -10/Mines | Identified Thief Drone Bay 1612 | -10/Mines | Discovered new exit (range 10) 1784 | -10/Mines | Discovered new exit (range 12) 1833 | -10/Mines | Met a Derelict who couldn't figure out how to use a Trap Extractor 1969 | -10/Mines | Entered Exiles 2004 | -10/Exiles | Met 8R-AWN 2044 | -10/Exiles | Met EX-HEX 2140 | -10/Exiles | Met EX-DEC 2190 | -10/Exiles | Met EX-BIN 2213 | -10/Exiles | Learned location of Zion (-7) 2355 | -10/Exiles | Discovered new exit (range 14) 2376 | -10/Exiles | Entered Mines 2404 | -9/Mines | Discovered new exit (range 12) 2410 | -9/Mines | Learned location of Storage (-8) 2543 | -9/Mines | Received a Rocket Launcher from a helpful Derelict 2570 | -9/Mines | Assembled infested the area 2713 | -9/Mines | Entered Materials 2713 | -8/Materials | Evolved 4 slots: Propulsion x2, Utility x2 3052 | -8/Materials | Discovered new exit (range 8) 3561 | -8/Materials | Discovered new exit (range 16) 3582 | -8/Materials | Identified exit to Storage 3615 | -8/Materials | Discovered new exit (range 16) 3931 | -8/Materials | Discovered new exit (range 5) 4503 | -8/Materials | Entered Storage 4514 | -8/Storage | Assisted by bots powering up and referring to "LRC-V3" 4761 | -8/Storage | Discovered new exit (range 15) 4795 | -8/Storage | Build established: Commander-Mutant 5180 | -8/Storage | Met a pair of Derelict thieves 5221 | -8/Storage | Build established: Mutant 5303 | -8/Storage | First assault squad dispatched 5312 | -8/Storage | Destroyed 7 combat bots 5326 | -8/Storage | Core integrity fell below 50% 5364 | -8/Storage | Lost 5 parts (3n1u1w) 5428 | -8/Storage | Identified exit to Factory 5430 | -8/Storage | Entered Factory 5430 | -7/Factory | Accompanied by 12 allies 5430 | -7/Factory | Evolved 2 slots: Utility x2 5539 | -7/Factory | Discovered new exit (range 77) 5646 | -7/Factory | Fabricated A-02 Transporter (x1) 5758 | -7/Factory | Identified exit to Factory 5775 | -7/Factory | Repaired Great Maul? 5805 | -7/Factory | Identified exit to Lower Caves 5821 | -7/Factory | Fabricated Hacking Suite (x1) 5914 | -7/Factory | Build established: Hacker-Sprinter 6044 | -7/Factory | Entered Lower Caves 6128 | -7/Lower Caves | Encountered a Warlord checkpoint 6358 | -7/Lower Caves | Learned Factory security intel 6359 | -7/Lower Caves | Learned 4 Factory zone layouts 6649 | -7/Lower Caves | Discovered new exit (range 9) 6662 | -7/Lower Caves | Identified exit to Lower Caves 6662 | -7/Lower Caves | Entered another Lower Caves area 6703 | -7/Lower Caves | Discovered exit to Factory (range 5) 6961 | -7/Lower Caves | Discovered new exit (range 7) 6964 | -7/Lower Caves | Identified exit to Zion 6977 | -7/Lower Caves | Learned Factory interactive machine intel 7003 | -7/Lower Caves | Entered Zion 7026 | -7/Zion | Discovered new exit (range 15) 7029 | -7/Zion | Identified exit to Proximity Caves 7152 | -7/Zion | Learned location of Warlord (-4) 7179 | -7/Zion | Given A8's code to call for help 7210 | -7/Zion | Gained Derelict followers 7240 | -7/Zion | Entered Proximity Caves 7240 | -6/Proximity Caves | Accompanied by 3 allies 7282 | -6/Proximity Caves | Spotted B-75 Beast 7454 | -6/Proximity Caves | Learned location of 1 exit from Factory 7652 | -6/Proximity Caves | Discovered exit to Factory (range 5) 7663 | -6/Proximity Caves | Entered Factory 7663 | -6/Factory | Evolved 2 slots: Utility x2 7664 | -6/Factory | Identified exit to Lower Caves 7665 | -6/Factory | Identified exit to Factory 7667 | -6/Factory | Loaded intel: 52 interactive machine locations 8160 | -6/Factory | Fabricated Field Propulsion Array (x2) 8357 | -6/Factory | Fabricated Adv. Hacking Suite (x1) 8384 | -6/Factory | Fabricated Adv. Hacking Suite (x1) 8471 | -6/Factory | Build established: Hacker-Mutant 8583 | -6/Factory | Fabricated Adv. Hacking Suite (x1) 8746 | -6/Factory | Entered Lower Caves 8757 | -6/Lower Caves | Learned Factory trap positions 8861 | -6/Lower Caves | Build established: Hacker-Gladiator 8954 | -6/Lower Caves | Learned Factory terminal intel 9051 | -6/Lower Caves | Discovered new exit (range 8) 9059 | -6/Lower Caves | Identified exit to Lower Caves 9060 | -6/Lower Caves | Entered another Lower Caves area 9075 | -6/Lower Caves | Discovered exit to Factory (range 15) 9105 | -6/Lower Caves | Learned Factory stockpile data 9656 | -6/Lower Caves | Crushed by falling debris 9670 | -6/Lower Caves | Attracted the attention of an 0b10 checkpoint 9671 | -6/Lower Caves | Discovered new exit (range 9) 9681 | -6/Lower Caves | Identified exit to Data Miner 9682 | -6/Lower Caves | Entered Data Miner 9682 | -6/Data Miner | Discovered new exit (range 6) 9705 | -6/Data Miner | Met Data Miner 9743 | -6/Data Miner | Learned location of Section 7 (-2) 9743 | -6/Data Miner | Acquired the access code to Warlord's prototype stash 9762 | -6/Data Miner | Received God Mode back door access code from Data Miner 9790 | -6/Data Miner | Identified exit to Proximity Caves 9794 | -6/Data Miner | Entered Proximity Caves 9794 | -5/Proximity Caves | Learned Factory terminal intel 9947 | -5/Proximity Caves | Build established: Hacker-Mutant 10175 | -5/Proximity Caves | Discovered exit to Factory (range 5) 10237 | -5/Proximity Caves | Entered Factory 10237 | -5/Factory | Evolved 2 slots: Utility x2 10238 | -5/Factory | Loaded intel: 93 trap records 10240 | -5/Factory | Loaded intel: 26 terminal locations 10291 | -5/Factory | Repaired Greatsword? 10598 | -5/Factory | Fabricated Adv. Sensor Array (x1) 10635 | -5/Factory | Incoming investigation squad redirected 10689 | -5/Factory | Identified exit to Upper Caves 10743 | -5/Factory | Repaired Adv. Sensor Array 10766 | -5/Factory | Repaired Lyr. Light Armor Plating? 10789 | -5/Factory | Build established: Wizard-Sprinter 10849 | -5/Factory | Fabricated Field Propulsion Array? 10917 | -5/Factory | Fabricated Exp. Propulsion Shielding (x1) 11055 | -5/Factory | Repaired Field Propulsion Array? 11153 | -5/Factory | Build established: Wizard-Mutant 11245 | -5/Factory | Discovered new exit (range 22) 11272 | -5/Factory | Identified exit to Factory 11316 | -5/Factory | Repaired Mni. Grenade Launcher 11357 | -5/Factory | Repaired Exp. Propulsion Shielding 11414 | -5/Factory | Entered Upper Caves 11414 | -5/Upper Caves | Accompanied by 1 ally 11676 | -5/Upper Caves | Identified exit to Upper Caves 11991 | -5/Upper Caves | Entered another Upper Caves area 12031 | -5/Upper Caves | Discovered exit to Factory (range 9) 12054 | -5/Upper Caves | Learned Factory security intel 12271 | -5/Upper Caves | Encountered a Warlord checkpoint 12398 | -5/Upper Caves | Discovered new exit (range 9) 12402 | -5/Upper Caves | Identified exit to Zhirov 12605 | -5/Upper Caves | Entered Zhirov 12605 | -5/Zhirov | Discovered new exit (range 3) 12610 | -5/Zhirov | Identified exit to Proximity Caves 12615 | -5/Zhirov | Met Zhirov 12622 | -5/Zhirov | Learned location of Testing (-3) 12622 | -5/Zhirov | Learned location of Command (-1) 12625 | -5/Zhirov | Zhirov requested help retrieving the SGEMP Prototype 12631 | -5/Zhirov | Found Alien Artifact 12631 | -5/Zhirov | Identified Integrated Dissipator 12631 | -5/Zhirov | Installed Integrated Dissipator, increased core heat dissipation (+20) 12677 | -5/Zhirov | Found Alien Artifact 12697 | -5/Zhirov | Entered Proximity Caves 12762 | -4/Proximity Caves | Learned Research trap positions 12921 | -4/Proximity Caves | Build established: Wizard-Sprinter 13053 | -4/Proximity Caves | Spotted B-86 Titan 13108 | -4/Proximity Caves | Discovered exit to Factory (range 15) 13119 | -4/Proximity Caves | Entered Factory 13119 | -4/Factory | Evolved 2 slots: Power x1, Utility x1 13120 | -4/Factory | Identified exit to Upper Caves 13122 | -4/Factory | Loaded intel: 28 terminal locations 13125 | -4/Factory | Identified exit to Extension 13125 | -4/Factory | Identified exit to Armory 13138 | -4/Factory | Spotted B-86 Titan 13213 | -4/Factory | Repaired Exp. Propulsion Shielding 13313 | -4/Factory | Identified Transdimensional Reconstructor 13349 | -4/Factory | Allied Derelicts emerged from ambush trap array 13465 | -4/Factory | Fabricated Nanoactuators (x2) 13527 | -4/Factory | Repaired Adv. Sensor Array? 13649 | -4/Factory | Fabricated B-60 Warrior (x3) 13696 | -4/Factory | Fabricated Exp. Hacking Suite (x1) 13764 | -4/Factory | Fabricated Lgt. Regenerative Plating (x1) 14011 | -4/Factory | Sucked down chute 14011 | -4/Factory | Entered Waste 14012 | -4/Waste | Met a frightened Derelict 14017 | -4/Waste | Spotted C-40 Crusher 14020 | -4/Waste | Spotted C-40 Crusher 14022 | -4/Waste | Spotted C-40 Crusher 14029 | -4/Waste | Spotted C-40 Crusher 14032 | -4/Waste | Spotted C-40 Crusher 14032 | -4/Waste | Spotted C-40 Crusher 14037 | -4/Waste | Discovered new exit (range 16) 14047 | -4/Waste | Warlord forces began an assault 14048 | -4/Waste | Found Prototype Device 14069 | -4/Waste | Allies destroyed C-40 Crusher 14074 | -4/Waste | Allies destroyed C-40 Crusher 14081 | -4/Waste | Allies destroyed C-40 Crusher 14086 | -4/Waste | Allies destroyed C-40 Crusher 14088 | -4/Waste | Allies destroyed C-40 Crusher 14108 | -4/Waste | Allies destroyed C-40 Crusher 14128 | -4/Waste | Identified exit to Factory 14151 | -4/Waste | Entered Factory 14151 | -4/Factory | Accompanied by 13 allies 14189 | -4/Factory | Repaired Nanoactuators? 14230 | -4/Factory | Incoming investigation squad redirected 14266 | -4/Factory | Repaired Broken Cmb. Linear Gravjet 14368 | -4/Factory | Repaired Exp. Propulsion Shielding 14431 | -4/Factory | Discovered new exit (range 12) 14590 | -4/Factory | Identified Exp. EM Disruption Field 14608 | -4/Factory | Found Prototype Hackware 14621 | -4/Factory | Identified Exp. System Shield 14721 | -4/Factory | Fabricated Exp. Hacking Suite (x1) 14792 | -4/Factory | Incoming investigation squad redirected 14998 | -4/Factory | Found Prototype Slashing Weapon 14998 | -4/Factory | Identified Vibroblade 15001 | -4/Factory | Incoming investigation squad redirected 15001 | -4/Factory | Found Vibroblade 15050 | -4/Factory | Repaired Broken Exp. EM Disruption Field 15168 | -4/Factory | Discovered new exit (range 16) 15236 | -4/Factory | Fabricated Lrn. Sensor Array? 15292 | -4/Factory | Fabricated G-50 Soldier? 15433 | -4/Factory | Identified exit to Research 15466 | -4/Factory | Repaired Mic. Fission Core 15528 | -4/Factory | Spotted B-86 Titan 15635 | -4/Factory | Found Vibroblade 15665 | -4/Factory | Entered Extension 15711 | -4/Extension | Rescued a captive Derelict 15712 | -4/Extension | Rescued a captive Derelict 15726 | -4/Extension | Rescued a captive Derelict 15749 | -4/Extension | Rescued A7 15778 | -4/Extension | Rescued a captive Derelict 15780 | -4/Extension | Rescued a captive Derelict 15798 | -4/Extension | Rescued a captive Derelict 15799 | -4/Extension | Rescued a captive Derelict 15811 | -4/Extension | Rescued a captive Derelict 15814 | -4/Extension | Rescued a captive Derelict 15891 | -4/Extension | Repaired Mic. Fission Core 16071 | -4/Extension | Spotted B-86 Titan 16080 | -4/Extension | Spotted B-86 Titan 16102 | -4/Extension | Destroyed B-86 Titan 16103 | -4/Extension | Allies destroyed B-86 Titan 16176 | -4/Extension | Rescued a captive Derelict 16348 | -4/Extension | Rescued a captive Derelict 16365 | -4/Extension | Rescued a captive Derelict 16366 | -4/Extension | Rescued a captive Derelict 16548 | -4/Extension | Discovered new exit (range 19) 16549 | -4/Extension | Discovered exit to Research (range 19) 16566 | -4/Extension | Identified exit to Cetus 16632 | -4/Extension | Build established: Hacker-Scout 16670 | -4/Extension | Entered Cetus 16670 | -4/Cetus | Accompanied by 18 allies (A7) 16675 | -4/Cetus | Acquired a Cetus Manufacturing Module code from A7 16677 | -4/Cetus | Spotted Cetus Guard 16677 | -4/Cetus | Spotted Cetus Guard 16678 | -4/Cetus | Spotted Cetus Guard 16683 | -4/Cetus | Spotted Cetus Guard 16685 | -4/Cetus | Allies destroyed Cetus Guard 16694 | -4/Cetus | Allies destroyed Cetus Guard 16698 | -4/Cetus | Allies destroyed Cetus Guard 16700 | -4/Cetus | Allies destroyed Cetus Guard 16723 | -4/Cetus | Started Cetus Manufacturing Module 16741 | -4/Cetus | Escorted A7 to Cetus Mainframe 16748 | -4/Cetus | Manufactured an Enhanced Grunt 16773 | -4/Cetus | Manufactured an Enhanced Grunt 16797 | -4/Cetus | Discovered new exit (range 16) 16798 | -4/Cetus | Manufactured an Enhanced Grunt 16801 | -4/Cetus | Identified exit to Archives 16823 | -4/Cetus | Manufactured an Enhanced Grunt 16848 | -4/Cetus | Manufactured an Enhanced Grunt 16886 | -4/Cetus | Entered Archives 16886 | -4/Archives | Accompanied by 20 allies (A7) 16891 | -4/Archives | Received a hacking code to weaken MAIN.C 16956 | -4/Archives | Discovered new exit (range 15) 16964 | -4/Archives | Identified exit to Hub_04(d) 16972 | -4/Archives | Build established: Wizard-Sprinter 16999 | -4/Archives | Entered Hub_04(d) 16999 | -4/Hub_04(d) | Accompanied by 16 allies 17022 | -4/Hub_04(d) | Core integrity fell below 50% 17105 | -4/Hub_04(d) | Network Hub disabled 17119 | -4/Hub_04(d) | Spotted Lightning 17142 | -4/Hub_04(d) | Entered Research 17142 | -3/Research | Evolved 2 slots: Propulsion x2 17143 | -3/Research | Loaded intel: 87 trap records 17223 | -3/Research | Identified exit to Testing 17238 | -3/Research | Central database locked down 17331 | -3/Research | Fabricated Nanosword (x1) 17425 | -3/Research | Found Vibroblade 17430 | -3/Research | Fabricated Exp. Melee Analysis Suite? 17565 | -3/Research | Repaired Exp. Propulsion Shielding 17991 | -3/Research | Found Prototype Processor 18010 | -3/Research | Identified Spectral Analyzer 18134 | -3/Research | Discovered new exit (range 15) 18145 | -3/Research | Entered Testing 18246 | -3/Testing | Discovered new exit (range 5) 18247 | -3/Testing | Identified exit to Research 18286 | -3/Testing | Build established: Wizard-Mutant 18406 | -3/Testing | Spotted PX-0EORJ3BJ2J 18473 | -3/Testing | Fabricated Cmb. Linear Gravjet? 18527 | -3/Testing | Fabricated Cmb. Linear Gravjet? 18778 | -3/Testing | Found Exp. Hacking Suite 18872 | -3/Testing | Fabricated Nanosword (x1) 19012 | -3/Testing | Found Prototype Energy Cannon 19014 | -3/Testing | Found Prototype Energy Cannon 19020 | -3/Testing | Identified Imp. Potential Cannon (x2) 19032 | -3/Testing | Repaired Centrium Medium Armor Plating 19060 | -3/Testing | Repaired Exp. Propulsion Shielding 19334 | -3/Testing | Entered Research 19334 | -2/Research | Accompanied by 1 ally 19334 | -2/Research | Evolved 2 slots: Utility x1, Weapon x1 19738 | -2/Research | Destroyed 7 combat bots 19920 | -2/Research | Discovered new exit (range 9) 19925 | -2/Research | Identified exit to Quarantine 20261 | -2/Research | Fabricated Femtoactuators (x1) 20383 | -2/Research | First assault squad dispatched 20398 | -2/Research | Incoming assault squad redirected 20511 | -2/Research | Repaired Lrn. Sensor Array 20538 | -2/Research | Repaired Exp. Propulsion Shielding 20655 | -2/Research | System corruption reached 10% 20660 | -2/Research | Discovered new exit (range 12) 20931 | -2/Research | Repaired Cmb. Linear Gravjet 20969 | -2/Research | Found Prototype Device 20977 | -2/Research | Repaired Centrium Medium Armor Plating? 20978 | -2/Research | Identified Adv. Particle Accelerator 21017 | -2/Research | Fabricated Exp. Actuator Array? 21028 | -2/Research | Fabricated System Purifier? 21055 | -2/Research | Repaired Micro-nuke Launcher 21110 | -2/Research | Spotted B-90 Cyclops 21114 | -2/Research | Entered Quarantine 21141 | -2/Quarantine | Found Alien Artifact 21148 | -2/Quarantine | Repaired Exp. Propulsion Shielding? 21176 | -2/Quarantine | Repaired Cmb. Linear Gravjet? 21310 | -2/Quarantine | Found Exp. Signal Interpreter 21341 | -2/Quarantine | Found Alien Slashing Weapon 21341 | -2/Quarantine | Identified Sigix Broadsword 21458 | -2/Quarantine | Repaired System Purifier 21486 | -2/Quarantine | Repaired Lgt. Quantum Reactor? 21511 | -2/Quarantine | Repaired Cmb. Linear Gravjet? 21635 | -2/Quarantine | Build established: Wizard-Gladiator 21670 | -2/Quarantine | Found Alien Artifact 21861 | -2/Quarantine | Found Alien Artifact 21899 | -2/Quarantine | Cryocooling Duct disabled 21914 | -2/Quarantine | Ambient heat levels rising (+20) 21914 | -2/Quarantine | Non-combat units ordered to evacuate 21941 | -2/Quarantine | Discovered new exit (range 13) 21946 | -2/Quarantine | Identified exit to Access 21955 | -2/Quarantine | Found Alien Energy Cannon 21967 | -2/Quarantine | Identified Core Reset Matrix 21967 | -2/Quarantine | Identified Phase Redirector 21967 | -2/Quarantine | Identified Hpw. Transdimensional Reconstructor 21967 | -2/Quarantine | Identified Core Cannon 22019 | -2/Quarantine | Found Alien Artifact 22121 | -2/Quarantine | Found Alien Artifact 22218 | -2/Quarantine | Identified Subatomic Replicator 22218 | -2/Quarantine | Identified Dimensional Node Initializer 22269 | -2/Quarantine | Spotted Fortress 22304 | -2/Quarantine | Discovered new exit (range 6) 22305 | -2/Quarantine | Identified exit to Section 7 22306 | -2/Quarantine | Entered Section 7 22342 | -2/Section 7 | Found Integrated Dissipator 22342 | -2/Section 7 | Installed Integrated Dissipator, increased core heat dissipation (+20) 22371 | -2/Section 7 | Spotted B-90 Cyclops 22380 | -2/Section 7 | Spotted S7 Guard 22392 | -2/Section 7 | Found Alien Artifact 22425 | -2/Section 7 | Spotted S7 Guard 22427 | -2/Section 7 | Found Alien Energy Cannon 22438 | -2/Section 7 | Destroyed S7 Guard 22447 | -2/Section 7 | Identified Sigix Shearcannon 22467 | -2/Section 7 | Found Alien Artifact 22596 | -2/Section 7 | Identified Core Regenerator 22596 | -2/Section 7 | Identified Integrity Redistributor 22625 | -2/Section 7 | Initialized slip node 22654 | -2/Section 7 | Spotted Executioner 22654 | -2/Section 7 | Spotted Executioner 22670 | -2/Section 7 | Spotted B-99 Colossus 22693 | -2/Section 7 | Found Integrity Redistributor 22694 | -2/Section 7 | Found Integrity Redistributor 22712 | -2/Section 7 | Found Alien Artifact 22715 | -2/Section 7 | Found Alien Artifact 22770 | -2/Section 7 | Warped through subspace to slip node 22779 | -2/Section 7 | Found Integrity Redistributor 22792 | -2/Section 7 | Identified LRC Energy Well (x2) 22792 | -2/Section 7 | Installed LRC Energy Well, increased energy storage capacity (+250) 22794 | -2/Section 7 | Installed LRC Energy Well, increased energy storage capacity (+250) 22842 | -2/Section 7 | Found Beam Splitter 23081 | -2/Section 7 | Found Integrated Dissipator 23081 | -2/Section 7 | Installed Integrated Dissipator, increased core heat dissipation (+20) 23127 | -2/Section 7 | Found Prototype Device 23278 | -2/Section 7 | Identified Adv. Kinecellerator 23365 | -2/Section 7 | Build established: Wizard-Scout 23577 | -2/Section 7 | Spotted S7 Guard 23579 | -2/Section 7 | Found Alien Artifact 23605 | -2/Section 7 | Identified Integrated Thermoelectric Network 23608 | -2/Section 7 | Installed Integrated Thermoelectric Network, gained heat-energy exchange potential 23644 | -2/Section 7 | Repaired Exp. EM Disruption Field 23669 | -2/Section 7 | Repaired Lgt. Quantum Reactor 23673 | -2/Section 7 | Entered Access 23673 | -1/Access | Evolved 2 slots: Propulsion x1, Weapon x1 23912 | -1/Access | Spotted B-99 Colossus 24288 | -1/Access | Fabricated Exp. Melee Analysis Suite? 24344 | -1/Access | Discovered new exit (range 8) 24347 | -1/Access | Identified exit to Command 24349 | -1/Access | Entered Command 24384 | -1/Command | Repaired Cmb. Linear Gravjet 24422 | -1/Command | Repaired Centrium Medium Armor Plating 24499 | -1/Command | Repaired Cmb. Linear Gravjet 24628 | -1/Command | Spotted Combat Programmer 24628 | -1/Command | Spotted Combat Programmer 24665 | -1/Command | Used Subatomic Replicator to replicate Sigix Broadsword 24681 | -1/Command | Spotted M Guard 24681 | -1/Command | Spotted M Guard 24720 | -1/Command | Destroyed Combat Programmer 24742 | -1/Command | Destroyed Combat Programmer 24770 | -1/Command | Destroyed M Guard 24790 | -1/Command | Lost 3 parts (2u1w) 24807 | -1/Command | Used Integrity Redistributor, redistributed integrity from core (-101) 24823 | -1/Command | Destroyed M Guard 24823 | -1/Command | All MAIN.C guards destroyed 24825 | -1/Command | Found Prototype Launcher 24843 | -1/Command | Identified Hellfire Missile Launcher 24956 | -1/Command | Repaired Centrium Medium Armor Plating 25024 | -1/Command | Met MAIN.C 25027 | -1/Command | Hacked MAIN.C using A7's code 25032 | -1/Command | 0b10 Conduit disabled 25052 | -1/Command | Destroyed MAIN.C Shell 25054 | -1/Command | MAIN.C activated Command garrisons 25148 | -1/Command | Destroyed MAIN.C 25149 | -1/Command | Discovered new exit (range 30) 25149 | -1/Command | Discovered new exit (range 118) 25149 | -1/Command | Extracted map data and part IDs from MAIN.C's data core 25152 | -1/Command | Found Exp. Targeting Computer 25154 | -1/Command | P-80 Master assimilated allied X-87 Electro 25171 | -1/Command | Lost 7 parts (3p4u) 25202 | -1/Command | Used Integrity Redistributor, redistributed integrity from core (-331) 25263 | -1/Command | Core integrity fell below 50% 25321 | -1/Command | Found AEGIS Remote Shield 25329 | -1/Command | Found Exp. System Purifier 25334 | -1/Command | Found Adv. Particle Accelerator 25342 | -1/Command | Found Vortex Chain Reactor 25345 | -1/Command | Found Vortex Chain Reactor 25422 | *** | Establishing 0b11! Last Messages --------------- 25290_ Sealed Heavy Doors breached. 25306_ K-01 Serf collects debris. 25312_ System Purifier purges 1% system corruption (1%). 25321_ Acquired AEGIS Remote Shield. 25330_ Exp. System Purifier purges 1% system corruption (0%). 25331_ Dropped Adv. Remote Datajack. 25334_ Dropped Focal Shield. 25334_ Acquired Adv. Particle Accelerator. 25338_ Acquired Focal Shield. 25341_ Dropped Quantum Reactor. 25341_ Dropped Mic. Antimatter Reactor. 25342_ Acquired Vortex Chain Reactor. 25343_ Dropped Adv. Energy Well. 25345_ Acquired Vortex Chain Reactor. 25346_ Dropped Cld. Antigrav System. 25350_ Acquired Centrium Medium Armor Plating. 25357_ K-01 Serf collects debris. 25368_ Acquired 70 matter. [Achievement: Commander 0b11] [Achievement: Superachiever] Map ----- +----------------------------------------------------+ | """ # "" ######################+########### | | """ # + %= =!%==[![! | | # # !|[|[=!! T | | # "" ########+#########+####+###### ""# | | """ # """"## # #!!%=!###""""# | | """ # """"## # #!%[* #]]] = | | """ # "" ## # # #[]] = | | """ # ## # # #!!** = | | # ## # " #|! !=== | | ########+### # ]# ######## | | #??????# #?# ####+### #??????? | | ####+######### #?# #??# "####/###??????? | | #?################ ## ^ #??????? | | #?????# !! # #??????? | | ##### #?????# !! # #??????? | | #???# #?????# ! + #??????? | | #???#^^^ ^#?????# # ^ #??????? | | #???#^ ^ #????### #### #??????? | | #???# #????# #??# % #??????? | | #?###+##+####### #??#^ #??????? | | +## #?# "## #??#^ #??????? | | # #?# ### #??# ^ #??????? | | # #?# #?# #### #??# % #??????? | | # #?# #?# #### #??# ^ #??????? | | + #?# "" #?# ## #??# #?###### | | # #?# """" "" #?# @ ## #??# #?#????? | | ### #?# """" """#?# ## #??####+###?#?#### | | #?# "" T"#?####### #?????# #???#?#""" | | #?# """####????" #???###/###?#?#"" | | ### #?# "" ## ###### #???# ###?#""" | | ## #?# # # #???# = ! ##?#""" | | ## #?# # # #???# ###?#" | | ## #?############## # #???# !* #?#?#"" | | ## #???????????# ## + %%#???# !* #?#?#"" | | "## #???????????# ## #% #???# * #?#?# " | | "## #???????????# ## #% #???# #?#?# " | | "## ########????# ## # #???# #?#?# | | T## #""""""#?####/########## #???# #?#?# | | "## + """#?# ## !#???# #?#?# | | "## + """#?# ## !%#???# ]#?#?# | | "## + """#?# ## ##??# % #?#?# % | | ## #""""""#?# # ######"/""#### % | | ############?# # % % % | | ##????????????# + = ! | | ??????????????# # | | ??????????????# # ####"T########! | | ??????????????# #######??#""#????#?# ! | | ??????????????# #????????####????#?# | | ??????????????# #????????????????#?#### | | ??????????????# #????????????????#????? | +----------------------------------------------------+ Best States ------------- Heat Dissipation 112 Energy Generation 75 Energy Capacity 1500 Matter Stores 300 Matter Capacity 300 Sight Range 24 Robot Scan Range 18 Terrain Scan Density 10 ECM Strength 2 Jamming Range 16 Power Amplification 40 Additional Mass Support 9 Armor Coverage 450 Resistance: KI 20 Resistance: TH 75 Resistance: EM 75 Propulsion Shielding 90 Utility Shielding 66 Weapon Shielding 66 Melee Speed Boost 50 Evasion (%) 69 Targeting Accuracy 8 Melee Accuracy 24 Target Analysis 8 Recoil Reduction 2 Offensive Hacking 74 Defensive Hacking 16 Authchip Count 3 Item Schematics ----------------- Hcp. Storage Unit | -10/Materials | Hacked Huge Storage Unit | -10/Materials | Hacked Imp. VTOL Module | -8/Materials | Scanalyzed Aerolev Unit | -8/Materials | Scanalyzed Imp. Medium Laser | -8/Materials | Scanalyzed Lrg. Storage Unit | -8/Materials | Scanalyzed Adv. EMP Blaster | -8/Materials | Scanalyzed Adv. Weight Redist. System | -8/Materials | Scanalyzed Hacking Suite | -8/Materials | Hacked System Shield | -7/Factory | Scanalyzed Imp. Flight Unit | -7/Factory | Scanalyzed Mni. Grenade Launcher | -7/Factory | Scanalyzed Imp. Melee Analysis Suite | -7/Factory | Scanalyzed Coolant Injector | -7/Zion | Archive Angular Momentum Engine | -7/Zion | Archive Greatsword | -7/Zion | Archive Drone Bay | -7/Zion | Archive Gatling Laser | -7/Zion | Archive Proton Cannon | -7/Zion | Archive Imp. Shield Generator | -7/Zion | Archive Imp. Recalibrator | -7/Zion | Archive Lance | -7/Zion | Archive Matter Filter | -7/Zion | Archive Hvy. Missile Launcher | -7/Zion | Archive Hyp. Gauss Rifle | -7/Zion | Archive Imp. Target Analyzer | -7/Zion | Archive Mak. Salvage Targeting Computer | -7/Zion | Archive Imp. Hacking Suite | -6/Factory | Hacked Imp. System Shield | -6/Factory | Hacked Lrn. Proton Cannon | -6/Factory | Hacked Field Propulsion Array | -6/Factory | Hacked Imp. Weapon Cycler | -6/Factory | Hacked Adv. Sensor Array | -6/Factory | Scanalyzed Adv. Hacking Suite | -6/Factory | Hacked Adv. System Shield | -6/Factory | Hacked Com. Ion Cannon | -6/Factory | Hacked Adv. Power Amplifier | -6/Factory | Hacked Cmb. Airjet | -6/Factory | Hacked Shock Maul | -6/Factory | Scanalyzed Combat Drone Bay | -6/Data Miner | Free Lgt. Regenerative Plating | -6/Data Miner | Free Enh. Flexi-carbon Leg | -6/Data Miner | Free Imp. Energy Well | -6/Data Miner | Free Hvy. Proton Cannon | -6/Data Miner | Free Imp. Linear Gravjet | -6/Data Miner | Free Adv. Thermal Shield | -6/Data Miner | Free Hardcell Cannon | -6/Data Miner | Free Quantum Rifle | -6/Data Miner | Free Exp. Propulsion Shielding | -5/Factory | Hacked Nanoactuators | -5/Factory | Hacked Cld. Plasma Cannon | -5/Factory | Scanalyzed Adv. Powered Armor | -5/Factory | Hacked Lrn. Sensor Array | -5/Factory | Hacked Com. HERF Cannon | -5/Factory | Hacked Assault Drone Bay | -5/Zhirov | Free Exp. Heat Sink | -5/Zhirov | Free Exp. Optical Array | -5/Zhirov | Free Imp. Arc Thrower | -5/Zhirov | Free Cld. Nuclear Pulse Thruster | -4/Factory | Scanalyzed Particle Accelerator | -4/Factory | Scanalyzed Enh. Nova Cannon | -4/Factory | Hacked Exp. Hacking Suite | -4/Factory | Hacked Imp. Cloaking Device | -4/Factory | Hacked Exp. EM Disruption Field | -4/Factory | Scanalyzed Exp. Cooling System | -4/Factory | Scanalyzed Cmb. Linear Gravjet | -4/Factory | Scanalyzed Exp. System Shield | -4/Factory | Scanalyzed Adv. Energy Well | -4/Factory | Scanalyzed HERF Cannon | -4/Factory | Scanalyzed Prc. Matter Filter | -4/Factory | Scanalyzed Vibroblade | -4/Factory | Scanalyzed Enh. Force Lance | -4/Factory | Hacked Impulse Thruster Array | -4/Extension | Hacked Nanosword | -3/Research | Hacked Exp. Melee Analysis Suite | -3/Research | Hacked Cld. Impulse Thruster | -3/Research | Scanalyzed Adv. Variable Charge Gun | -3/Research | Scanalyzed Centrium Medium Armor Plating | -3/Research | Scanalyzed Zero-point Reactor | -3/Research | Hacked Cld. Q-thruster | -3/Research | Hacked Centrium Leg | -3/Testing | Hacked Adv. Quantum Shading Machine | -3/Testing | Hacked Beam Splitter | -3/Testing | Hacked Spectral Analyzer | -3/Testing | Scanalyzed Exp. Power Amplifier | -3/Testing | Scanalyzed Helical Railgun | -3/Testing | Scanalyzed Exp. Actuator Array | -2/Research | Hacked Femtoactuators | -2/Research | Hacked System Purifier | -2/Research | Hacked Adv. Cloaking Device | -2/Research | Hacked Exp. Signal Interpreter | -2/Quarantine | Hacked Adv. Kinecellerator | -2/Section 7 | Scanalyzed Robot Schematics ------------------ Y-54 Guardian | -7/Zion | Archive A-02 Transporter | -7/Zion | Archive S-27 Virus | -7/Zion | Archive X-82 Rainmaker | -7/Zion | Archive H-66 Slayer | -6/Data Miner | Free A-15 Conveyor | -6/Data Miner | Free L-61 Swordsman | -6/Data Miner | Free Fabricated ------------ A-02 Transporter | x1 | -7/Factory | Preloaded Hacking Suite | x1 | -7/Factory Field Propulsion Array | x2 | -6/Factory | Authchip Adv. Hacking Suite | x1 | -6/Factory | Authchip Adv. Hacking Suite | x1 | -6/Factory Adv. Hacking Suite | x1 | -6/Factory Adv. Sensor Array | x1 | -5/Factory | Authchip Field Propulsion Array | x2 | -5/Factory | Authchip Exp. Propulsion Shielding | x1 | -5/Factory Nanoactuators | x2 | -4/Factory | Authchip B-60 Warrior | x3 | -4/Factory | Preloaded Exp. Hacking Suite | x1 | -4/Factory Lgt. Regenerative Plating | x1 | -4/Factory Exp. Hacking Suite | x1 | -4/Factory Lrn. Sensor Array | x1 | -4/Factory | Authchip G-50 Soldier | x3 | -4/Factory | Preloaded Nanosword | x1 | -3/Research Exp. Melee Analysis Suite | x1 | -3/Research Cmb. Linear Gravjet | x2 | -3/Testing | Authchip Cmb. Linear Gravjet | x2 | -3/Testing | Authchip Nanosword | x1 | -3/Testing Femtoactuators | x1 | -2/Research Exp. Actuator Array | x1 | -2/Research System Purifier | x1 | -2/Research Exp. Melee Analysis Suite | x1 | -1/Access Alien Tech Used ----------------- Integrated Dissipator Sigix Broadsword Phase Redirector Sigix Shearcannon Dimensional Node Initializer Transdimensional Reconstructor LRC Energy Well Integrated Thermoelectric Network Subatomic Replicator Integrity Redistributor Achievements -------------- Commander 0b11 Poison In The Code Superachiever void main() Challenges ------------ None Game ------ Seed FlightResetStorage Manual? 0 Play Time 08:44:58 Cumulative 344.1 hours Start 2022.06.10 @ 15:48:03 End 2022.06.11 @ 03:04:40 Sessions 5 Manual Loads 0 Difficulty Rogue Special Mode None Game No. 92 Rogue 92 Adventurer 0 Explorer 0 Win Type 1 Total 18 Types 14/1/3/0/0/0/0/0/0 Lore% 89 Gallery% 90 Achievement% 76 Wizard Run 0 Options --------- ASCII 0 Keyboard 0 Movement Numpad Keybinds 0 Fullscreen 1 Font 14/SmallcapsGlow Map View 84x54 Tactical HUD 1 Map Filters NONE Filters NONE Steam 1 RUN: 1351dec2-0190-4562-a278-db488ea09f27